{"text_format":"1","workbook":"xlsx","n_sheets":7,"sheets":["Informationen zur Anmeldung","Anmeldebogen","Tabellen","S1-Leitfaden","Arbeitssicherheit","Kulturen","Excel"],"not_rendered":{"charts":0,"images":1,"macros":1,"external_links":1,"defined_names":23,"comments":1,"pivot_tables":0},"unopened":[],"bounds":{"document_bytes":16777216,"sheet_cells":100000,"rows_first":2000,"rows_last":500,"rows_between":2000,"halvings":0,"cell_chars":16384,"cell_head_chars":4096},"cells_cut":0,"cells_raw":0,"read":"whole","date_system":"1900"}

{"sheet":"Informationen zur Anmeldung","index":0,"n_rows":24,"n_cols":2,"rows_kept":24,"cut":false,"hidden":false,"merged":[[42,1,42,8],[44,1,44,8],[45,1,45,8],[36,1,36,8],[37,1,37,8],[38,1,38,8],[39,1,39,8],[40,1,40,8],[41,1,41,8],[43,1,43,8],[21,1,21,8],[22,1,22,8],[35,1,35,8],[24,1,24,8],[25,1,25,8],[26,1,26,8],[27,1,27,8],[28,1,28,8],[29,1,29,8],[30,1,30,8],[23,1,23,8],[31,1,31,8],[32,1,32,8],[33,1,33,8],[34,1,34,8],[17,1,17,8],[18,1,18,8],[19,1,19,8],[20,1,20,8],[11,1,11,8],[12,1,12,8],[13,1,13,8],[14,1,14,8],[15,1,15,8],[16,1,16,8],[3,1,3,8],[7,1,7,8],[8,1,8,8],[9,1,9,8],[10,1,10,8]]}
[null,"Anmeldung Flächenbelegung Gewächshauslaborzentrum Dürnast"]
[null,"Stand 11/2022"]
[]
[null,"Hinweis für alle Nutzer: Bevor Sie eigenständig in den GHL-Räumlichkeiten arbeiten dürfen, ist es aus rechtlichen Gründen erforderlich, Sie in die Sicherheitsrichtlinien einzuweisen. Dazu müssen den angehängten „S1-Leitfaden für Versuchsansteller“ sowie die Informationen bezüglich „Arbeitssicherheit am GHL für Projektpartner“ lesen und dies in jedem Anmeldeformular ankreuzen und durch Ihre Unterschrift bestätigen.                                                                                                                                                                                          Um den GHL-Leistungskatalog einzusehen oder näheres über GHL-Kulturverfahren, Materialien und Firmenkontakte zu erfahren, loggen Sie sich auf der GHL-Homepage unter dem Reiter \"Internal\" mit Ihrer TUM-Kennung ein."]
[]
[]
[]
[null,"Versuchsanmeldung:  "]
[null,"Formulare bitte ausfüllen und senden an:  ghl@ls.tum.de"]
[null,"Unterschriften werden in das ausgedruckte Formular eingefügt und zusätzlich mit dem Excel-Original-Anmeldeformular eingereicht."]
[null,"Sie als Versuchsansteller sind für die Unversehrtheit unserer GHL-Mitarbeiter verantwortlich, wenn diese in Ihrem Experiment mit speziellen, versuchsspezifischen-Gerätschaften und/oder -Substanzen (Pflanzenschutzmittel, Chemikalien, …) umgehen sollen. Daher müssen Sie bezüglich diesen Gefährdungen umfangreiche Kenntnisse besitzen, uns diese mitteilen und Gefärdungsbeurteilungen erstellen. Mit der Bestätigung auf dem Anmeldebogen \"Keine Gefahr\" versichern Sie dies und haften bei Missachtung.    "]
[]
[null,"Experimente mit natürlichen Pflanzen"]
[null,"=> Anmeldebogen (ANLAGE-9) einreichen"]
[]
[null,"S1-Experimente mit gen-veränderten Pflanzen (GVOs) "]
[null,"feste Pflanzen-Bestückung während des Experimentes"]
[null,"=> Anmeldebogen (ANLAGE-9) UND Formblatt-Z (ANLAGE-1) einreichen mit Unterschrift vom verantwortlichen LS/AG-Projektleiter und Vektorkarten"]
[]
[null,"S1-Experimente mit gen-veränderten Pflanzen (GVOs)"]
[null,"wechselnde Pflanzen-Bestückung während des Experimentes"]
[null,"=> Anmeldebogen (ANLAGE-9) UND Formblatt-Z (ANLAGE-1) einreichen mit Unterschrift vom verantwortlichen LS/AG-Projektleiter und Vektorkarten"]
[]
[null,"=> während der Versuchsdurchführung => Anbringung einer Dokumentationsliste außen an die Versuchseinheit (gemäß \"Muster Dokumentationsliste\") und eigenständige Dokumentation aller GVO-Ein- und Außgänge"]

{"sheet":"Anmeldebogen","index":1,"n_rows":157,"n_cols":11,"rows_kept":157,"cut":false,"hidden":false,"merged":[[158,0,158,7],[178,0,178,7],[179,0,179,7],[180,0,180,7],[181,0,181,7],[182,0,182,7],[183,0,183,7],[169,0,169,7],[170,0,170,7],[171,0,171,7],[172,0,172,7],[173,0,173,7],[174,0,174,7],[175,0,175,7],[176,0,176,7],[177,0,177,7],[160,0,160,7],[161,0,161,7],[162,0,162,7],[163,0,163,7],[164,0,164,7],[165,0,165,7],[166,0,166,7],[167,0,167,7],[168,0,168,7],[0,0,0,7],[2,0,2,7],[10,0,10,6],[14,2,14,4],[15,5,15,8],[12,5,14,8],[22,3,22,7],[51,6,51,7],[30,3,30,4],[30,6,30,7],[36,2,36,4],[36,6,36,7],[38,2,38,4],[38,6,38,7],[16,0,16,7],[18,3,18,4],[18,5,18,6],[39,2,39,3],[39,4,39,5],[40,0,40,1],[47,6,47,7],[48,0,48,7],[58,0,58,8],[24,3,24,7],[26,3,26,4],[26,6,26,7],[28,3,28,4],[28,6,28,7],[64,0,64,7],[68,4,68,6],[70,0,70,7],[71,0,71,1],[71,5,71,6],[55,2,55,5],[55,6,55,7],[57,0,57,7],[62,0,62,7],[81,0,81,7],[82,0,82,1],[82,5,82,6],[84,3,84,6],[86,0,86,6],[73,3,73,6],[75,0,75,6],[77,0,77,6],[79,1,79,5],[79,6,79,7],[133,4,133,7],[95,2,95,3],[95,6,95,7],[97,2,97,3],[99,2,99,3],[101,2,101,3],[103,2,103,6],[108,0,108,8],[110,0,110,2],[110,3,110,6],[113,0,119,7],[87,0,87,6],[89,1,89,5],[89,6,89,7],[93,2,93,3],[93,6,93,7],[134,4,134,7],[131,2,131,3],[131,0,131,1],[137,0,137,1],[137,2,137,3],[135,4,135,7],[132,6,132,7],[135,0,135,1],[135,2,135,3],[134,0,134,1],[134,2,134,3],[131,6,131,7],[132,0,132,1],[132,2,132,3],[133,0,133,1],[133,2,133,3],[122,0,122,7],[125,0,128,7],[90,0,90,8],[139,4,139,7],[140,0,140,1],[140,2,140,3],[141,0,141,1],[136,2,136,3],[150,4,150,7],[151,4,151,7],[152,4,152,7],[136,4,136,7],[137,4,137,7],[144,4,144,7],[145,2,145,3],[141,2,141,3],[136,0,136,1],[138,2,138,3],[142,0,142,1],[139,0,139,1],[139,2,139,3],[138,0,138,1],[138,4,138,7],[142,2,142,3],[143,0,143,1],[143,2,143,3],[144,0,144,1],[144,2,144,3],[145,0,145,1],[149,4,149,7],[140,4,140,7],[141,4,141,7],[142,4,142,7],[146,0,146,1],[146,2,146,3],[147,0,147,1],[147,2,147,3],[148,0,148,1],[148,2,148,3],[143,4,143,7],[154,4,154,7],[145,4,145,7],[146,4,146,7],[147,4,147,7],[148,4,148,7],[154,0,154,3],[149,0,149,1],[149,2,149,3],[153,0,153,1],[153,2,153,3],[152,0,152,1],[152,2,152,3],[150,0,150,1],[150,2,150,3],[151,0,151,1],[151,2,151,3],[153,4,153,7]]}
["Anmeldung Flächenbelegung Gewächshauslaborzentrum Dürnast"]
["Stand 11/2022",null,null,null,"Formular bitte ausfüllen und senden an:  ghl@ls.tum.de"]
["Nur wenn die ersten drei Punkte mit \"Ja\" bestätigt und die Unterschrift geleistet wurden, kann das Experiment am GHL durchgeführt werden. Den S1-Leitfaden und die Information zur Arbeitssicherheit finden Sie auch auf der GHL-Homepage.  "]
[]
["I.   Ich habe den „S1-Leitfaden für Versuchsansteller“ (Stand 2024) gelesen",null,null,null,null,null,null,"Ja/Nein"]
[]
["II.  Ich habe die „Arbeitssicherheit am GHL für Projektpartner“ (Stand 2024) gelesen",null,null,null,null,null,null,"Ja/Nein"]
[]
["III. Von meinem Experiment gehen keine Gefahren für Mensch und Umwelt aus",null,null,null,null,null,null,"Abfrage"]
[]
["Ist die Veröffentlichung des Versuchstitels und/oder des Versuchsanstellers auf der ",null,null,null,null,null,null,"Ja/Nein"]
["GHL-Homepage erwünscht?"]
[]
["Datum",null,"Vor-Nachname"]
[]
[null,null,null,null,null,"Unterschrift"]
["Im Fragebogen bitte möglichst genaue Angaben (blau hinterlegten Felder) zu den Ansprüchen der zu kultivierenden Pflanzenart angeben. Die Verantwortung für das Experiment liegt beim Versuchsansteller! Darum ist es unbedingt notwendig ausreichend häufig vor Ort zu sein, die Pflanzenqualität zu beobachten und regelmäßig Kontakt zum jeweils betreuenden Meister bzw. zum technischen/wissenschaftlichen Leiter der Abteilung halten, damit auftretende Probleme gemeinsam früh erkannt und behoben werden können."]
[]
["Versuchsnummer: GHL",null,null,"Betreuer am GHL:   ",null,"Meister"]
[]
["S1:","Nein",null,null,"Standort:   ","GHL"]
[]
["1-Angaben zum Nutzer"]
[null,null,null,"hier auswählen falls bereits aufgelistet"]
["Lehrstuhl (LS) / Fachgebiet (FG):"]
[null,null,null,"hier eingeben falls noch nicht aufgelistet"]
["Ansprechpartner (Name)                         1:",null,null,null,null,"2:  "]
[]
["Telefon",null,"1:  ",null,null,"2:  "]
[]
["e-mail",null,"1:  ",null,null,"2:  "]
[]
["Abrechnung über:",null,null,"Einzelrechnung"]
[]
["2-Pflanzenmaterial und Flächenbedarf"]
[]
["Pflanzenart",null,null,null,null,"andere"]
[]
["Art der Kulturfläche",null,null,null,null,"Wunsch-Standort"]
[null,null,"oder",null,"oder"]
["Anzahl Pflanzen",null,null,"Anz. Tische",null,"Fläche",null,"(m²)"]
[]
["Nutzungszeitraum   von",null,null,"        bis    "]
[]
["Versuchs-relevantes Pflanzenmaterial:"]
[]
["Blüten","Früchte","Blätter","Saatgut","Wurzeln",null,"sonstiges (bitte erläutern)"]
["Nein","Nein","Nein","Nein","Nein"]
["GWH1 -Gewächshaus; GWH-KAB2 -Gewächshaus-Kabine; PAR3 -Pflanzenanzuchtraum (Klimakabine); KS4 -Klimaschrank"]
["3-Klimabedingungen",null,null,null,null,null,"← möglich bei "]
[null,null,null,null,null,null,"gelisteten Kulturen (Reiterauswahl)"]
["Kultivierung nach GHL-Empfehlung? => BUTTON drücken",null,null,null,null,null,"Bitte vorher Makros aktivieren"]
[" => dann Punkte 3.1 - 4 werden automatisch Ausgefüllt => ggf. modifizieren"]
[]
["3.1-Ziel-Temperatur",null,"Tag:  ",null,null,null,"°C    (Heizungssollwert)"]
["(GWH1,GWH-KAB2,PAR3,KS4)",null,"GWH_KAB Ziel-Temp. im System: z.B. 15°C      => Real-Temperatur Winter → 15°C  / Sommer → 25°C                                                                                                                                  GWH          Ziel-Temp. im System: z.B. 20°C      => Real-Temperatur Winter  → 18°C / Sommer  → 35°C",null,null,null,"Lüftungssollwert +(2-4)°C"]
[]
["Temperaturen sollten ggf. der Lichtverfügbarkeit angepasst werden. Je nach Kultursystem und Jahreszeit können die realen Temperaturen sehr stark von den Wunschtemperaturen (Klimacomputer-Sollwerte) abweichen.     =>  GHL-Homepage =>"]
["https://www.ghl.wzw.tum.de/fileadmin/user_upload/GHL-Kulturverfahren__GHL-Materialien__Kontaktdaten_zu_Firmen_und_Infos.pdf"]
["3.2-Luftfeuchte"]
["(PAR3, KS4, *GWH-KAB2)",null,"Tag:  ",null,"Nacht:  ",null,"% rel. LF"]
["*in GWH-KAB eingeschränkt möglich"]
["3.3-Belichtung:                            DLI = PPFR * 0,0036 * Belichtungs-Dauer (mol/m²*d)"]
[]
["PAR3, KS4 :                               PAR: max. 500μmol/m²*s                                 KS: max. 300 μmol/m²*s"]
[]
["Lichtintensität (µmol/m²*s)",null,null,"  Dauer (h/d)",null,null,"DLI (mol/m²d)",{"$f":"(C67*E67*0.0036)","v":0}]
[]
["System-Eignung: Kultur/Jahreszeit ",null,null,null,"natürliches DLI der Kultur (mol/m²d)"]
[]
["GWH1 :             Assimilationslicht (ASL)                                                        im GWH => ca. 60-80% Außenlicht"]
["       ASSL-PPFR (µmol/m²*s)",null,null,"  Dauer (h/d)",null,"DLI (mol/m²d)",null,{"$f":"(C72*E72*0.0036)","v":0}]
[null,null,"wenn verfügbar",null,null,null,null,"+"]
["System-Eignung: Kultur/Jahreszeit ",null,null,"zzgl. 80*-60**% Außenlicht-DLI (mol/m²d)"]
[]
["*direkte Strahlung (Sommer), ** diffuse Strahlung (Winter)                                                             natürliches DLI der Kultur (mol/m²d)"]
[]
["Schattieren ab einer Lichtintensität von… (Lichtstress)"]
[]
[null,"Schattierungsaktivierung",null,null,null,null,"klux (Außen)"]
[]
["GWH-KAB2 :             Assimilationslicht (ASL)                                                        GWH-KAB => ca. 30-50% Außenlicht"]
["        ASSL-PPFR (µmol/m²*s)",null,null,"  Dauer (h/d)",null,"DLI (mol/m²d)",null,{"$f":"(C83*E83*0.0036)","v":0}]
[null,null,"wenn verfügbar",null,null,null,null,"+"]
["System-Eignung: Kultur/Jahreszeit ",null,null,"zzgl. 50*-30**% Außenlicht-DLI (mol/m²d)"]
[]
["*direkte Strahlung (Sommer), ** diffuse Strahlung (Winter)                                                             natürliches DLI der Kultur (mol/m²d)"]
["Schattieren ab einer Lichtintensität von… (Lichtstress)"]
[]
[null,"Schattierungsaktivierung",null,null,null,null,"klux (Außen)"]
["GWH_KAB (außer im Winter) : wird zur Stabilisierung der Temperatur immer ab ca. 40 klx (ca. 630 µmol/m²s ) Außenlicht schattiert (=> 500 (direkt) - 200 (diffus) µmol/m²s an der Pflanze)"]
["4-Substrat / Kulturgefäße / Bewässerung / Düngung",null,null,null,"*ZL = Zusatzleistung"]
[]
["4.1-Substrat I",null,"Substrat",null,null,"eigenes"]
["evt. Aussaat / Topfen"]
["       Substrat II",null,"Substrat",null,null,"eigenes"]
[]
["4.2-Töpfe-Gefäße",null,"Töpfe",null,null,"Stück"]
["evt. Aussaat / Topfen"]
["       Töpfe-Gefäße",null,"Töpfe",null,null,"Stück"]
[]
["4.3-Bewässerung",null,"Bewässerung",null,null,"Düngung","Ja"]
[]
["4.4-Wasserqualität",null,"Wasserqualität"]
[]
[]
[]
["5-Pflanzenschutz  (evt. Einschränkungen aufgrund der Versuchsfrage)"]
["Bitte beachten: Chemischer-Pflanzenschutz erfolgt immer in Absprache mit dem Versuchsansteller und unterliegt immer den BVL-Richtlinien. Um eine Schädlings bzw. Krankheits-Verschleppung auf andere Experimente zu unterbinden, ist \"Keine Behandlung\" nur in abgetrennten Kulturbereichen möglich. Biologischer Pflanzenschutz erfolgt regelmäßig ohne Absprache, wenn dieser gewünscht ist."]
[]
["Pflanzenschutzmaßnahme",null,null,"Pflanzenschutz (PS)"]
[]
["6-kurze Versuchsbeschreibung (UNBEDINGT NOTWENDIG!!!)"]
[]
[]
[]
[]
[]
[]
[]
[]
["7-Messdatenerfassung"]
["Fall Sie Messdaten des Klimacomputers benötigen oder bezüglich spezieller Meßdatenerfassung Fragen haben, wenden Sie sich bitte an den betreuenden Meister"]
[]
["8-Vereinbarungen / Sonderleistungen"]
[]
[]
[]
[]
[]
["9-GHL-Kulturempfehlung in der gewählten Versuchseinheit"]
["April-September",null,"Oktober - März",null,"Versuchsstart ","SO","Kultur"]
["SO",null,"WI",null,"Kultursystem",null,"sonstige"]
[null,null,null,null,"Temp. Tag °C"]
[null,null,null,null,"Temp. Nacht °C"]
[null,null,null,null,"RF % Tag"]
[null,null,null,null,"RF % Nacht",null,null,null,null,null," "]
[null,null,null,null,"ASS-Licht     µmol/m²*s    (Assimilation-Zusatzbelichtung)"]
[null,null,null,null,"Belichtungsdauer h/d       (Assimilation-Zusatzbelichtung)"]
[null,null,null,null,"DLI              mol/m²d        (Zusatz durch Assimilationslicht) "]
[null,null,null,null,"nat. DLI       mol/m²d        (natürliches Licht im System)"]
[null,null,null,null,"gesamt DLI  mol/m²d       (ASS-DLI + nat. DLI)"]
[null,null,null,null,"optimales Kultur-DLI mol/m²d"]
[null,null,null,null,"Topfgröß-I (Anzucht)         (cm im Durchmesser / Liter pro Topf)"]
[null,null,null,null,"Topfgröß-II (Kultur)           (cm im Durchmesser / Liter pro Topf)"]
[null,null,null,null,"Substrat-I (Anzucht)"]
[null,null,null,null,"Substrat-II (Kultur)"]
[null,null,null,null,"System-Eignung für Kultur in diesem System zu dieser Jahreszeit"]
[null,null,null,null,"Schattieren über (klx)"]
[null,null,null,null,"Bewässerung"]
[null,null,null,null,"Wasserqualität"]
[null,null,null,null,"Düngeart"]
[null,null,null,null,"Düngergaben"]
[null,null,null,null,"DüngeKonz"]
[null,null,null,null,"Besonderheiten"]
[]
["GHL-Einträge während der Kulturführung"]

{"sheet":"Tabellen","index":2,"n_rows":39,"n_cols":43,"rows_kept":39,"cut":false,"hidden":true,"merged":[]}
["Ja/Nein",null,"Ja",null,null,"Meister",null,"Spalte1",null,"GHL",null,"PAR, KS","Spalte1",null,"GWH","Spalte1",null,"GWH-KAB","Spalte1",null,"LS/FG/AG",null,"Pflanzenart",null,"Art der Kulturfläche",null,"Schattierungsaktivierung",null,"Substrat",null,"Töpfe",null,"Bewässerung",null,"Pflanzenschutz",null,"GHL",null,"Herr/Frau",null,"Titel",null,"Wasserqualität"]
["Ja/Nein",null,"Ja",null,null,"Meister",null,0,null,"GHL",null,null,0,null,null,0,null,null,0,null,"LS/FG/AG",null,"Pflanzenart",null,"Art der Kulturfläche",null,"Schattierungsaktivierung",null,"Substrat",null,"Töpfe",null,"Bewässerung",null,"Pflanzenschutz (PS)",null,"GHL",null,"Herr/Frau",null,"Titel",null,"Wasserqualität"]
["Ja",null,"Nein",null,null,"Hansel",null,10,null,"GHL1-234",null,null,100,null,null,50,null,null,150,null,"Agrarsystemrechnik",null,"Arabidopsis spp.",null,"Gewächshaus mit Tischen",null,"keine Schattierung",null,"Topfsubstrat: C700 Stender",null,"9 cm Ø / 0.3 L",null,"Anstaubewässerung",null,"keine Behandlungen",null,"GHL1-234",null,"Herr",null,"Dr.",null,"Stadtwasser (pH: 8 / 19° dH / EC ≈ 0.8 ms)"]
["Nein",null,null,null,null,"Steinmetz",null,12,null,"GHL2-858",null,null,150,null,null,100,null,null,200,null,"Biochemie",null,"Crassocephalum",null,"Gewächshaus mit Rinnen",null,"80 sehr sonnenliebende Pflanzen Wachstumsphase (ca. 1440 µmol/m²s)",null,"Topfsubstrat: D400 Stender",null,"11 cm Ø / 0.5 L",null,"Tröpfchenbewässerung",null,"nur biologischer PS",null,"GHL2-858",null,"Frau",null,"Prof.",null,"VE: vollentsalztes Wasser (pH: 6.5-7 / ≈ 0.001° dH / EC ≈ 0.001 ms)"]
[null,null,null,null,null,"Zuber",null,14,null,"GHL3-1189",null,null,200,null,null,200,null,null,250,null,"Biotechnologie der Naturstoffe",null,"Erdbeeren (Fragaria spp.)",null,"Gewächshaus-Kabine",null,"70 sonnenliebende Pflanzen Wachstumsphaste  (ca. 1260 µmol/m²*s)",null,"Anzuchtsubstrat: A200 Stender",null,"13 cm Ø / 0.9 L",null,"Versuchsansteller bewässert selbst",null,"nur chemischer PS (wenn möglich)",null,"GHL3-1189",null,null,null,null,null,"VE: STW (3:1) Verschnitt (pH: 7,7 / ≈ 7° dH (rechnerisch) / EC ≈ 0.25 ms)"]
[null,null,null,null,null,null,null,16,null,"GHL4",null,null,250,null,null,null,null,null,500,null,"Biotechnologie gartenbaulicher Kulturen",null,"Gerste-Sommer (cv. Golden-Promise)",null,"Pflanzenanzuchtraum (PAR/PKR)",null,"60 sonnenliebende Pflanzen Wachstumsphaste  (ca. 1080 µmol/m²*s)",null,"C700 : E910 (2:1) + 10% Bims (ZL*)",null,"17 cm Ø / 2 L",null,null,null,"biologischer PS nur mit Absprache ",null,"GHL5-1287",null,null,null,null,null,"VE: STW (1:1) Verschnitt (≈ 11° dH (rechnerisch))"]
[null,null,null,null,null,null,null,18,null,"GHL5-1287",null,null,300,null,null,null,null,null,null,null,"Botanik",null,"Gerste-Sommer (Hordeum vulg.)",null,"Klimaschrank",null,"45 sonnenliebende Pflanzen ab Blüte (ca. 810 µmol/m²)",null,"eigenes Substrat",null,"19 cm Ø / 3 L",null,null,null,"biologischer- und chemischer PS möglich",null,null,null,null,null,null,null,"Milli-Q-Wasser (nur bei Eigenversorgung möglich)"]
[null,null,null,null,null,null,null,20,null,null,null,null,350,null,null,null,null,null,null,null,"Brau- u. Getränketechnologie",null,"Gerste-Winter (Hordeum vulg.)",null,"Kühllagerraum",null,"40 sonnenliebende Pflanzen ab Blüte (ca. 720 µmol/m²)",null,null,null,"31 cm Ø / 12 L",null,null,null,"biologischer- und chemischer PS nur nach Absprache"]
[null,null,null,null,null,null,null,24,null,null,null,null,400,null,null,null,null,null,null,null,"Crop Physiology",null,"Kartoffeln (Solanum tuber.)",null,"Vegetationshalle",null,"30 lichtempfindliche Pflanzen (ca. 540 µmol/m²s)",null,null,null,"33 cm Ø / 15 L"]
["https://www.ghl.wzw.tum.de/internal/versuchsanmeldung.html",null,null,null,null,null,null,null,null,null,null,null,450,null,null,null,null,null,null,null,"Green Techn. In Landscape Architecture",null,"Lotus",null,"Frühbeetkasten",null,"10 bei kalten Temperaturen (ca. 180 µmol/m²s)",null,null,null,"andere"]
["https://www.ghl.wzw.tum.de/fileadmin/user_upload/Arbeitssicherheit_am_GHL_fuer_Projektpartner_Anlage_10_Stand_2021.pdf",null,null,null,null,null,null,null,null,null,null,null,500,null,null,null,null,null,null,null,"HEF & Digital Agriculture",null,"Mais (Zea mays)",null,"Freilandfläche"]
["https://www.ghl.wzw.tum.de/fileadmin/user_upload/S1-Leitfaden_fuer_Versuchsansteller_Anlage5_Stand_2021.pdf",null,null,null,null,null,null,null,null,null,null,null,600,null,null,null,null,null,null,null,"Land Surface-Atmosphere Interactions",null,"Raps (Brassica napus)",null,"Zylinderanlage"]
[null,null,null,null,null,null,null,null,null,null,null,null,1000,null,null,null,null,null,null,null,"Lebensmittelchemie und molekulare Sensorik",null,"Sonnenblumen (Helianthus spp.)"]
[null,null,null,null,null,null,null,null,null,null,null,null,null,null,null,null,null,null,null,null,"LMU-Dep. Biologie I",null,"Tomaten-Kurzkultur"]
["ghl@wzw.tum.de",null,null,null,null,null,null,null,null,null,null,null,null,null,null,null,null,null,null,null,"Ökoklimatologie",null,"Tomaten-Langkultur"]
[null,null,"Rechnungsart",null,null,"Abfrage",null,"Abfrage",null,null,null,null,null,null,null,null,null,null,null,null,"Ökologie und Ökosystemmanagement",null,"Weizen-Sommer (Nasa)"]
[null,null,"SFB",null,null,"Nein",null,"Eine Gefahr",null,null,null,null,null,null,null,null,null,null,null,null,"Ökologischer Landbau",null,"Weizen-Sommer (Triticum spp.) "]
["Ja/Nein",null,"Einzelrechnung",null,null,"Ja",null,"Keine Gefahr",null,null,null,null,null,null,null,null,null,null,null,null,"Ökophysiologie d. Pflanze",null,"Weizen-Winter (Triticum spp.) "]
["Ja/Nein",null,null,null,null,null,null,null,null,null,null,null,null,null,null,null,null,null,null,null,"Pflanzengenetik",null,"Wildtomaten (S. chilense ) Kurzkultur"]
["Gefahr",null,null,null,null,null,null,null,null,null,null,null,null,null,null,null,null,null,null,null,"Pflanzenzüchtung",null,"Wildtomaten (S. chilense ) Langkultur"]
["Keine Gefahr",null,null,null,null,null,null,null,null,null,null,null,null,null,null,null,null,null,null,null,"Phytopathologie",null,"sonstige"]
[null,null,null,null,null,null,null,null,null,null,null,null,null,null,null,null,null,null,null,null,"Pilz-Biotechnologie in der  Holzwissenschaft"]
[null,null,null,null,null,null,null,null,null,null,null,null,null,null,null,null,null,null,null,null,"Plant-Insect Interactions"]
[null,null,null,null,null,null,null,null,null,null,null,null,null,null,null,null,null,null,null,null,"Populationsgenetik"]
[null,null,null,null,null,null,null,null,null,null,null,null,null,null,null,null,null,null,null,null,"Renaturierungsökologie"]
[null,null,null,null,null,null,null,null,null,null,null,null,null,null,null,null,null,null,null,null,"Soil Biophysics and Enviromental Systems"]
[null,null,null,null,null,null,null,null,null,null,null,null,null,null,null,null,null,null,null,null,"Systembiologie der Pflanzen"]
[null,null,null,null,null,null,null,null,null,null,null,null,null,null,null,null,null,null,null,null,"Terrestrische Ökologie"]
[null,null,null,null,null,null,null,null,null,null,null,null,null,null,null,null,null,null,null,null,"Urbane Produktive Ökosysteme"]
[]
[null,null,null,null,null,null,null,null,null,null,null,null," "]
[]
[]
[]
[]
[]
[]
["https://www.youtube.com/watch?v=QwddXEyRC0w"]
["https://support.microsoft.com/de-de/office/sperren-oder-entsperren-von-bestimmten-bereichen-eines-gesch%C3%BCtzten-arbeitsblatts-75481b72-db8a-4267-8c43-042a5f2cd93a"]

{"sheet":"S1-Leitfaden","index":3,"n_rows":43,"n_cols":2,"rows_kept":43,"cut":false,"hidden":false,"merged":[[42,1,42,8],[43,1,43,8],[36,1,36,8],[37,1,37,8],[38,1,38,8],[39,1,39,8],[40,1,40,8],[41,1,41,8],[35,1,35,8],[24,1,24,8],[25,1,25,8],[26,1,26,9],[27,1,27,9],[28,1,28,9],[29,1,29,9],[30,1,30,9],[31,1,31,9],[32,1,32,9],[33,1,33,9],[34,1,34,8],[23,1,23,8],[12,1,12,8],[13,1,13,8],[14,1,14,9],[15,1,15,9],[16,1,16,9],[17,1,17,9],[18,1,18,9],[19,1,19,9],[20,1,20,9],[21,1,21,8],[22,1,22,8],[11,1,11,8],[4,1,4,8],[6,1,6,8],[8,1,8,8],[9,1,9,8],[10,1,10,8]]}
[null,"S1-Leitfaden für GHL-Nutzer (Umgangsregelungen) "]
[null,"Stand 2024"]
[null,"Arbeiten in S1 Räumen: Anlagen, in denen mit Gen-Veränderten-Organismen (GVO's) gearbeitet wird "]
[]
[null,"Hinweis für alle Nutzer: Die Projektleitung (PL) der gentechnischen-S1-Anlagen (234, 858, 1189 und 1287) am Gewächshauslaborzentrum (GHL) der TUM-School of Life Sciences verpflichtet alle Projektverantwortlichen (Experimente mit oder ohne genveränderten Pflanzen (GVOs)) den Betriebsanweisungen am GHL Folge zu leisten. Die Betriebsanweisungen basieren auf Richtlinien der gültigen TUM-Organisationsverfügung „Gentechnik in geschlossenen Systemen“ (OrgV GenT-igS) - Grundlage §14 Gentechnik-Sicherheits-Verordnung (GenTSV)."]
[]
[null,"Mit der Unterschrift auf dem Anmeldebogen verpflichten Sie sich, die unter Punkt \n  3.1            Experimente ohne GVOs\n  3.1 + 3.2  Experimente mit GVOs\naufgeführten Anweisungen zur lesen, die drei Verständnisfragen auf dem Anmeldebogen richtig anzukreuzen (nur 1x jährlich), diese einzuhalten sowie alle Projektteilnehmer entsprechend einzuweisen. Verbindlich bestätigt wird dies mit Ihrer Unterschrift auf dem Anmeldebogen. Die Richtlinien sind auch gegenüber dem HR6 und der Regierung von Oberbayern verbindlich."]
[]
[null,"Leitfaden für S1-Arbeiten am GHL (Anlagen 234, 858, 1189, 1205, 1287)"]
[null,"Am GHL wird mit Gen-veränderten Pflanzen gearbeitet, sogenannte GVOs (Gen Veränderte Organismen). Räumlichkeiten in denen mit GVOs gearbeitet werden darf, müssen offiziell bei Kontroll-Behörden gemeldet und genehmigt werden (S1-Anlagen). In diesen Anlagen gelten dann Europa- und Deutschlandweit genau festgelegte Verhaltensregeln, die im Gentechnik-gesetz (GenTG) und diversen Verordnungen festgelegt sind. Eine wichtige Anweisung besagt, dass sich nur eingewiesene Personen  bzw. nur in Begleitung einer eingewiesenen Person in einer S1-Anlage aufhalten dürfen. \nDie GHL-Projektleitung (PL) – Dr. Susanne Steger -, trägt sowohl gegenüber dem HR6 (TUM Hochschulreferat 6 - Gesundheit, Sicherheit, Strahlenschutz) als auch der Regierung von Oberbayern die Verantwortung, die Verordnungen und Gesetze im Umgang mit Gen-veränderten-Organismen (GVOs) umzusetzen und zu gewährleisten.\nAuch wenn Sie kein S1-Experiment durchführen, halten Sie und Ihre Mitarbeiter sich in einer S1-Anlage auf und müssen sich gemäß der Richtlinien verhalten. \n"]
[]
[null,"Sie finden die wichtigsten Regeln als Betriebsanweisungen vor jeder einzelnen S1-Räumlichkeit. "]
[]
[null,"Am GHL werden ausschließlich Pflanzen der Sicherheitsstufe-1 (S1) kultiviert, bei der gemäß §7 GenTG „… nach dem Stand der Wissenschaft nicht von einem Risiko für die menschliche Gesundheit und die Umwelt auszugehen ist“. \n\n"]
[null,"Ansprechpartner"]
[null,"Projektleitung-GHL \nDr. Susanne Steger: Tel.: 08161 71-5020 \n"]
[null,"susanne.steger@tum.de \n"]
[null,"Beauftragter Biologische Sicherheit (BBS)\nDr. Marion Müller Tel.: 08161 71-5736 \n"]
[null,"marion.mueller@tum.de\n"]
[]
[null," "]
[null,"Pflichten des Projektverantwortlichen und all seiner Mitarbeiter (Bezeichnung: Nutzer)"]
[null,"3.1 Alle Nutzer mit Experimenten"]
[1,"Generell sollte bitte stets auf Ordnung und Sauberkeit in den Versuchsaufbauten geachtet werden, da gelegentlich Begehungen von offiziellen Behörden stattfinden."]
[2,"Der Projektverantwortliche hält alle an dem Projekt mitwirkenden Personen an, dieses Formular zu lesen und die GHL-Vorschrift entsprechend den Betriebsanweisungen einzuhalten. Nicht eingewiesene Mitarbeiter dürfen NUR in Begleitung einer unterwiesenen Person die Anlagen betreten. Die eingewiesene Person trägen hier die Verantwortung, dass die Betriebsanweisungen vor Ort gelesen und beachtet werden.   "]
[3,"NICHT-GVO-Pflanzen niemals mit einem orangen Etikett kennzeichnen\n(am GHL gilt: orange ↔ GVOs)"]
[4,"Es dürfen keine Pflanzen bzw. Pflanzenteile wie Früchte und Blüten aus anderen Experimenten mitgenommen oder gegessen werden. "]
[5,"Bitte stets die Betriebsanweisungen an den Häusern beachten\n→Essen, Trinken, Rauchen, Schnupfen, Schminken und das Aufbewahren von Nahrungs- und Genussmittel im \n     S1-Bereich sind verboten \n→Haustiere sind verboten \n→keine Pflanzenteile mitnehmen und essen\n→Türen während der Arbeiten geschlossen halten\n→Es besteht Laborkittelpflicht in S1-Räumen, falls diese nicht explizit durch GHL-Schilder aufgehoben wird. \n     (Besucherkittel stehen zur Verfügung ggf. beim GHL-Personal anfragen)\n"]
[6,"Es dürfen keine Arbeitsutensilien in den Räumlichkeiten gelagert werden. Bei Platzbedarf für Lagerutensilien kann eine Box im Verbinder bereitgestellt werden (bitte fragen Sie im Gärtnerteam nach)"]
[7,"Um Pathogen-Freiheit an den Kulturen zu gewährleisten\n→Bei Pathogen-Befall bitte umgehend das Personal informieren und Bekämpfungsstrategien mit dem \n    Meister/GHL-Personal abstimmen (Welche Maßnahme ist bei der jeweiligen Versuchsfrage möglich?) \n→Kein eigenständiger Transport von befallenen Pflanzen innerhalb des GHL - nach Absprache mit dem \n      Meister/GHL-Personal auch nur in geschlossenen Transportbehälter\n→Kein eigenmächtiges Hinzustellen von neuen Pflanzen in bestehende Beständen ohne es vorher mit dem \n    Meister/GHL-Personal abgesprochen zu haben\n"]
[8,"Eingewiesene Personen haben außerhalb der Öffnungszeiten nur über eine entsprechende Kartenzulassung Zugang zu den Anlagen (Personalkarte, Studentenkarte freischalten lassen           (R. Hansel, S. Kolbinger). "]
[9,"Jeder Unfall oder jede Verletzung wird unverzüglich dem GHL-Gärtnermeister gemeldet werden - ggf. muss ein Arzt aufgesucht werden."]
[10,"Aus Gründen der Arbeitssicherheit dürfen sich Nutzer niemals allein in den Anlagen aufhalten."]
[11,"Elektrische und mechanische Gerätschaften dürfen nur mit CE- -Zertifikat und/oder einer gültigen TÜV-Prüfplakette verwendet werden."]
[null,"3.2 Nutzer mit GVO-Pflanzen-Experimenten (S1)"]
[null,"Zusätzlich zu den in 3.1 aufgeführten Punkten gilt hier:"]
[12,"Arbeiten in den S1-Räumen dürfen nur nach Rücksprache mit dem GHL-Projektleiter (PL-GHL) durchgeführt werden.\n→Formblatt-Z einreichen (Anzahl der einzelnen GVO’s; Unterschrift des LS-Projektleiters)\n→Vektorkarten aller verwendeten GVO’s einreichen\n→Bei Versuchsreihen/Projekte mit dynamischer GVO-Bestückung und –Entsorgung müssen zusätzlich alle \n     GVO-Ein-und –Ausgänge auf einer Dokumentations-Liste vom Nutzer eigenständig dokumentiert werden \n     (außen an der Versuchseinheit angebracht).\n"]
[13,"Transgene Pflanzen werden mit einem orangen Etikett gekennzeichnet (auch als Zusatz-Etikett möglich)"]
[14,"S1-Pflanzen dürfen ausschließlich in S1-Räumen bearbeitet werden! (kultivieren, lagern, ernten, auswerten, …). Substratreste werden verschlossen und beschriftet (GHL-Nr.) in der genutzten S1-Einheit gelagert"]
[15,"KEINE Transformationsarbeiten am GHL möglich "]
[16,"Transport von GVOs innerhalb vom GHL ausschließlich in den speziellen S1-Transport-Boxen! \nAuch die kürzesten Wege! "]
[17,"Vermehrungsfähiges Pflanzengewebe darf NIEMALS in die Umwelt gelangen! DARUM=> \n→Laborkittel-Pflicht => verhindern Saatgut/Pollen-Verschleppung durch Kleidung\n→Kittel verbleibt im GWH/PAR oder wird dort zur Mitnahme verpackt, dann autoklaviert\n→Kultivierung von blühenden GVO-Pflanzen nur in eingenetzten GWH\n→Eintüten der Blüten-/Frucht-Stände wenn Bestäubungspartner anderer Arbeitsgruppen beeinflusst werden.\n→Saatgut-Verschleppung vermeiden\n   →Klebematten am Boden, Netzte in der Lüftung, Filter im Gully, S1-Sauger, S1-Müll\n   →Tische regelmäßig (wöchentlich) vom Saatgut befreien (fegen, saugen mit S1-Sauger). Heruntergefallenes Saatgut \n        umgehend beseitigen.\n   →Pflanzen so aufstellen, dass kein Saatgut auf den Boden fallen kann (Abstand vom Tischrand)\n→S1-Material in kompostierbar und Restmüll trennen (beschriftete Behälter im GWH/VE)\n    →Gelbe Behälter => kompostierbar\n    →Weiße Behälter => Restmüll (auch Töpfe mit Saatgutanhaftungen z.B. Arabidopsis)\n→S1-Trays im Kabinenhaus lagern und waschen (ggf. andere Räumlichkeiten beim GHL-Personal anfragen)\n"]
[18,"→Entsorgung von S1-Pflanzen (Autoklavieren immer in Absprache mit dem GHL-Personal)\n   →Pflanzenmaterial & Substrat müssen immer vor der Entsorgung inaktiviert werden. \n   →Bei direktem Kontakt oder benachbartem Aufstellort von S1- und NICHT-S1-Pflanzen gleicher Gattung und Art \n       müssen BEIDE Pflanzengruppen wie S1-Pflanzen behandelt werden (Pollenübertragung, Samenverbreitung).\n   →Pflanzenmaterial & Substrat im Autoklavierbeutel verpacken \n       (großen Wurzelballen zerkleinern => Deaktivierung vom Vegetationspunkt)\n   →Autoklavier-Säcke locker füllen (1/2 bis 1/3 befüllen (Gewicht!)); Bei Bedarf 2 Säcke übereinander verwenden (!!! Säcke sind teuer!!!)\n   →Versuchsnummer und Standort mit dem Edding auf dem Sack notieren!!!\n   →Lange, harte, starre Pflanzenteile gut zerkleinern, damit nichts durchdrückt \n   →Das verpackte Material verbleibt bis zur Inaktivierung in der jeweiligen Versuchseinheit und wird vom \n       GHL-Personal abgeholt und autoklaviert. \n"]

{"sheet":"Arbeitssicherheit","index":4,"n_rows":75,"n_cols":3,"rows_kept":75,"cut":false,"hidden":false,"merged":[[72,1,72,8],[73,1,73,8],[74,1,74,8],[75,1,75,8],[66,1,66,8],[67,1,67,8],[68,1,68,8],[69,1,69,8],[70,1,70,8],[71,1,71,8],[64,1,64,8],[53,1,53,8],[54,1,54,8],[55,1,55,8],[56,1,56,8],[57,1,57,8],[58,1,58,8],[59,1,59,8],[60,1,60,8],[61,1,61,8],[62,1,62,8],[63,1,63,8],[52,1,52,8],[41,1,41,8],[42,1,42,8],[43,1,43,8],[44,1,44,8],[45,1,45,8],[46,1,46,8],[47,1,47,8],[48,1,48,8],[49,1,49,8],[50,1,50,8],[51,1,51,8],[40,1,40,8],[29,1,29,8],[30,1,30,8],[31,1,31,8],[32,1,32,8],[33,1,33,8],[34,1,34,8],[35,1,35,8],[36,1,36,8],[37,1,37,8],[38,1,38,8],[39,1,39,8],[28,1,28,8],[17,1,17,8],[18,1,18,8],[19,1,19,8],[20,1,20,8],[21,1,21,8],[22,1,22,8],[23,1,23,8],[24,1,24,8],[25,1,25,8],[26,1,26,8],[27,1,27,8],[16,1,16,8],[3,1,3,8],[5,1,5,8],[7,1,7,8],[8,1,8,8],[9,2,9,6],[10,1,10,8],[11,1,11,8],[12,1,12,8],[13,1,13,8],[14,1,14,8],[15,1,15,8]]}
[null,"Arbeitssicherheit für GHL-Nutzer"]
[null,"Stand 2024"]
[]
[null,"Hinweis für alle Nutzer: Am GHL gelten die Regeln der allgemeinen TUM-Hausordnung. Außerdem müssen Vorschriften gemäß Arbeitsschutzverordnung, Betriebssicherheitsverordnung, Gefahrstoffverordnung und „Grundsätze der Prävention“ BGV A1 beachtet werden. Die Verantwortung der Einhaltung liegt beim Nutzer (Projektpartner). Die Projekt-Verantwortliche-Person ist verpflichtet, die Sicherheitshinweise an alle ausführende Mitarbeiter weiterzugeben. "]
[]
[null,"Sie sind als Wissenschaftler/in, Studierende/r, technische/r Mitarbeiter/in o. ä. in der TU München tätig. \nAm Gewächshauslaborzentrum Dürnast gibt es unter Umständen Gefahren, die ihnen nicht bekannt bzw. fremd sind. Dieses Informationsblatt erläutert die wichtigsten Gefahren und Verhaltensregeln. Bei weiteren Fragen können Sie sich gerne an eine/n GHL-Verantwortliche/n wenden (Dr. H. Hausladen, Dr. S. Steger, Dr. B.Jakli sowie die Gärtner-Meister/in K. Steinmetz, S. Zuber und R. Hansel). \nDie GHL-verantwortlichen sind gesetzlich befugt, ihnen Vorschriften zur Sicherheit zu machen und bei unmittelbarer Gefahr direkt in ihren Arbeitsbereich einzugreifen. \n"]
[]
[null,"Folgende Punkte sind bei Arbeiten am GHL zu befolgen:\n\n"]
[null,"→ Alle Arbeiten müssen während der Öffnungszeiten im Meisterbüro angemeldet werden. Außerhalb der \n     Öffnungszeiten liegt die Verantwortung bei den Projektpartnern."]
[null,null,"Öffnungszeiten:       Montag – Donnerstag: 7:30 – 16:30 Uhr\n                                        Freitag: 7:30 – 12:30 Uhr "]
[null,"→Bei Arbeiten in Klimakammern und Gewächshäusern ist das Betreten erst nach Einweisung durch den \n     Verantwortlichen erlaubt. Auch bei Projektpartnern, die nicht mit Gen veränderten Organismen (GVO’s) \n     arbeiten ist eine Einweisung in die S1-Vorschriften notwendig. \n"]
[null,"Machen Sie sich zunächst mit dem jeweiligen Arbeitsplatz vertraut. Überprüfen Sie ihn und seine nähere Umgebung auf mögliche Gefahrenquellen. Informieren Sie sich über Rettungswege, Notausgänge, Standorte und Bedienung der Feuerlöscheinrichtungen und -geräte. Blockieren Sie mit ihren Arbeiten und Geräten keine Fluchtwege, keine Feuerlöschgeräte und dergleichen. "]
[]
["→","Beginnen Sie mit neuen Arbeiten erst nach Freigabe der entsprechenden Einrichtung durch unseren Betrieb. "]
["→","Beachten Sie die angebrachten Gebots-, Verbots- und Warnschilder. Diese gelten nämlich für ALLE! "]
["→","Vielleicht werden ihnen von unserem Betrieb Maschinen, Handwerkszeug, Gerüste, Leitern usw. zur Verfügung gestellt. Auch wenn unsere Mitarbeiter verpflichtet sind, diese Dinge in sicherheitstechnisch einwandfreiem Zustand zu halten, prüfen Sie dies vor der Benutzung selbst auf sicherheitstechnisch einwandfreien Zustand."]
["→","Es ist nicht ausgeschlossen, dass noch nicht alle Absturzstellen (z.B. Treppenhäuser, Bodenluken, Laufstege) mit Absturzsicherungen versehen sind. Meiden Sie diese Gefahrenstellen! Veranlassen Sie bei unserem Koordinator die erforderlichen Sicherungen anzubringen, falls Sie in der Nähe solcher Gefahrenstellen arbeiten müssen oder diese auf dem Weg zu ihrem Arbeitsplatz liegen. Für Hinweise allgemeiner Art wären wir ihnen dankbar! "]
["→","Unsere Betriebe besitzen in der Regel einen Sanitätsraum mit Erste-Hilfe-Ausrüstung sowie einen Defibrillator neben dem Seminarraum. Dieses steht auch ihnen bei Verletzungen oder Gesundheitsstörungen offen. "]
["→","Beachten Sie, dass wir bei grob fahrlässigen oder vorsätzlichen Verstößen gegen Sicherheitsvorschriften einen Verweis vom Betriebsgelände aussprechen."]
[]
[null,"Sicherheitsverantwortlichkeit"]
[null,"Der Projektpartner (Nutzer) ist für die Arbeitssicherheit seiner Mitarbeiter verantwortlich. In diesem Sinne ist er gemäß Arbeitsschutzgesetz, Betriebssicherheitsverordnung, Gefahrstoffverordnung, BG Vorschrift „Grundsätze der Prävention“ BGV A1, hat er für die Einhaltung zu sorgen. "]
[]
[null,"Zugang zu Gebäude I Aufenthalt in Gebäude"]
[null,"Der Zutritt und der Aufenthalt auf dem Gelände sind nur gestattet, soweit es die Durchführung des wissenschaftlichen Experiments erfordert. Vorhandene Verkehrsschilder sowie Zutrittsverbote sind zu beachten. Fahrzeuge dürfen im Gebäudebereich nur an Plätzen abgestellt werden, die einen öffentlichen Parkplatz darstellen oder die mit dem GHL Dürnast zuvor abgestimmt worden sind."]
[]
[null,"Persönliche Schutzausrüstung"]
[null,"Soweit für den Arbeitsbereich spezielle Schutzbekleidung (Sicherheitsschuhe, Schutzhelm) notwendig ist, haben Mitarbeiter des Projektpartners diese zu tragen. "]
[]
[null,"Arbeits- und Betriebsmittel "]
[null,"Der Projektpartner hat seine Arbeits- und Betriebsmittel auf dem vom GHL Dürnast zugewiesenen Platz ordnungsgemäß zu lagern. Der Projektpartner hat seine Arbeits- und Betriebsmittel nach Abschluss der Tätigkeit ordnungsgemäß sauber zu hinterlassen. "]
[]
[null,"Elektrischer Strom"]
[null,"Experimente an denen Strom führende Bauteile verwendet werden, sind mit dem GHL abzustimmen. Ortsveränderliche elektrische Bauteile (alles mit einem Stecker) müssen eine aktuelle E-Check-Plakette haben. Möglichkeiten zum nachträglichen E-Check bestehen bei Herrn Kolbinger. Alle baulichen Elektroeinrichtungen (Schaltschränke, Verteilungen, …) dürfen nicht eigenständig bedient, geöffnet oder betreten werden."]
[]
[null,"Schutz gegen Absturz "]
[null,"Arbeitsplätze, die mehr als 1 m über dem Boden liegen, müssen einen sicheren Zugang, festen Standort und eine wirksame Absturzsicherung haben. Provisorische Aufstiegshilfen und Arbeitspodeste dürfen nicht benutzt werden. "]
[]
[null,"Umweltschutz "]
[null,"→Alle negativen Umweltauswirkungen sind auf das unbedingt notwendige Maß zu reduzieren. Umweltauswirkungen \n    besonderer Art bzw. größeren Ausmaßes (z. B. Lärm) sind vorab mit dem GHL Dürnast abzusprechen. \n→Wassergefährdende Stoffe dürfen nicht ins Erdreich und nicht in das Abwassersystem geleitet werden. Bei der \n    Lagerung sind Schutzmaßnahmen (z. B. Auffangwannen) nötig\n→Pflanzenschutzmittel/Gefahrstoffe dürfen nicht selbstständig ohne das GHL-Personal ausgebracht werden \n→Abfälle des Projektpartners sind vom Projektpartner selbst zu entsorgen, bzw. in Absprache mit dem benannten \n    Ansprechpartner vor Ort. "]
[]
[null,"Unfälle, Schadensfälle, umweltrelevante Ereignisse "]
[null,"Arbeitsplätze, die mehr als 1 m über dem Boden liegen, müssen einen sicheren Zugang, festen Standort und eine wirksame Absturzsicherung haben. Provisorische Aufstiegshilfen und Arbeitspodeste dürfen nicht benutzt werden. "]
[]
[null,"Ordnung und Sauberkeit "]
[null,"Das Arbeitsumfeld ist stets in einem ordentlichen und sauberen Zustand zu halten. "]
[]
[null,"Hygiene und Sicherheit "]
[null,"Die an den jeweiligen Versuchsanlagen angebrachten Hygienepläne sind einzuhalten. Impfungen wie Tetanus, Zecken, … werden empfohlen."]
[]
[null,"Datenschutzbestimmungen "]
[null,"Photographien und Filmdreharbeiten dürfen nur mit Genehmigung erstellt werden. "]
[]
[null,"Besondere Gefährdung/gefährliche Arbeiten – Absprache "]
[null,"Werden von dem Projektpartner geplante gefährliche Arbeiten oder Arbeiten mit besonderer Gefährdung durchgeführt, hat er die Gefährdungsbeurteilung nach Freigabe des Experiments, rechtzeitig vor dem Start dem GHL Dürnast vorzulegen. Gleiches gilt für besondere Gefährdungen aus dem Bereich des Projektpartners, die das GHL nicht kennt. Eine nachweisliche Absprache hat immer zu erfolgen. Die von Projektpartnern selbst konstruierte Gerätschaften/Versuchsaufbauten müssen technisch abgenommen werden (TÜV, Sicherheitsbeauftragter, …). "]
[]
[null,"Mechanische Gefährdungen durch automatische Lüftungen"]
[null,"Warnschilder sind zu beachten. Gegenstände und Körperteile sind von den Seitenlüftungen fernzuhalten. "]
[]
[null,"Stolperquellen in Gewächshäusern"]
[null,"Fest installierte Dünger- und Wasser-Leitungen hinter den Tischen (Ostseite). Schläuche und Gießgeräte. "]
[]
[null,"Maschinen-Nutzung"]
[null,"Warnschilder sind zu beachten. Nutzung der jeweiligen Geräte / Maschinen nur nach ausdrücklicher Einführung durch GHL-Mitarbeiter. Mechanische Geräte dürfen nicht alleine genutzt werden. "]
[]
[]
[]
[null,"Scharfe und spitze Gegenstände"]
[null,"Sachgemäße Lagerung und Entsorgung (Spitzen nur mit Schutzhülle). "]
[]
[null,"Persönliche Gefahren"]
[null,"Heiße Temperaturen im Gewächshaus können Kreislaufprobleme erzeugen. Hebeeinrichtungen zur Handhabung schwerer Lasten (Geräte beim GHL Personal anfordern). Verbot der Alleinarbeit.  "]
[]
[null,"Pflanzenschutzanwendungen"]
[null,"Die nach Pflanzenschutzmaßnahmen gekennzeichneten Gewächshauseinheiten dürfen auf keinen Fall betreten werden."]

{"sheet":"Kulturen","index":5,"n_rows":109,"n_cols":31,"rows_kept":109,"cut":false,"hidden":true,"merged":[]}
["Kultur","Kulturmonate","Jahreszeit                                     Winter: Okt.-März                                Sommer: April-Sept.","Kultursystem","Entwicklungsziel","Vermehrungsart","geeigneter Kultur-Zeitraum","Kulturdauer (Monate)","Temp. Tag °C","Temp. Nacht °C","rel. LF % Tag","rel. LF % Nacht","optimale = natürliches Tagelichtsumme für Kultur (mol/m²d)","Anteil optimale Tagelichtsumme für Kultur im System (%)","natürliches DLI im System (mol/m²d)","Tageslicht-summe (DLI-Jahreszeit-Durchnitt) mol/m²d","ASS-Belichtung DLI (mol/m²d)","ASL-Lichtintensität (µmol/m²s)","Belichtungsdauer h/d","Bewässerung","Wasserqualität","Düngesystem","Dünger (Jungpfl. / veget. W. / Blüte)","Düngegaben","Dünge-Konz. EC (µs) (Jungpfl. / veg. Wachstum / Blüte)","Topfgröße I","Topfgröße II","SubstratI","SubstratII","schattieren ab","sonstiges"]
["Kartoffeln (Solanum tuber.)","Apr-Sep","SO","GWH-KAB","Vermehrung-Abreife","Augenstecklinge","problematisch","4-5",20,20,60,60,17,{"$f":"(100*O2)/M2","v":105.85143529411762},{"$f":"(P2+Q2)","v":17.994743999999997},9.3547439999999984,{"$f":"R2*S2*0.0036","v":8.64},200,12,"Anstau, Tröpfchen","VE: STW (3:1) Verschnitt (pH: 7,7 / ≈ 7° dH (rechnerisch) / EC ≈ 0.25 ms)","Bewässerungsdüngung",null,"bei jeder Bewässerung","0.5-1.5","13 cm Ø / 0.9 L","31 cm Ø / 12 L","Topfsubstrat: C700 Stender","Topfsubstrat: C700 Stender","40 sonnenliebende Pflanzen ab Blüte (ca. 720 µmol/m²)"]
["Kartoffeln (Solanum tuber.)","Okt-März","WI","GWH-KAB","Vermehrung-Abreife","Augenstecklinge","gut","4-5",20,20,60,60,17,68.563173856209147,{"$f":"(P3+Q3)","v":11.655739555555556},3.0157395555555557,8.64,200,12,"Anstau, Tröpfchen","VE: STW (3:1) Verschnitt (pH: 7,7 / ≈ 7° dH (rechnerisch) / EC ≈ 0.25 ms)","Bewässerungsdüngung",null,"bei jeder Bewässerung","0.5-1.5","13 cm Ø / 0.9 L","31 cm Ø / 12 L","Topfsubstrat: C700 Stender","Topfsubstrat: C700 Stender","40 sonnenliebende Pflanzen ab Blüte (ca. 720 µmol/m²)"]
["Kartoffeln (Solanum tuber.)","Apr-Sep","SO","GWH","Vermehrung-Abreife","Augenstecklinge","problematisch","4-5",20,20,null,null,17,96.298835294117637,16.370801999999998,16.370801999999998,0,null,null,"Anstau, Tröpfchen","VE: STW (3:1) Verschnitt (pH: 7,7 / ≈ 7° dH (rechnerisch) / EC ≈ 0.25 ms)","Bewässerungsdüngung",null,"bei jeder Bewässerung","0.5-1.5","13 cm Ø / 0.9 L","31 cm Ø / 12 L","Topfsubstrat: C700 Stender","Topfsubstrat: C700 Stender","40 sonnenliebende Pflanzen ab Blüte (ca. 720 µmol/m²)"]
["Kartoffeln (Solanum tuber.)","Okt-März","WI","GWH","Vermehrung-Abreife","Augenstecklinge","gut","4-5",20,20,null,null,17,56.45614248366013,9.597544222222222,5.2775442222222226,4.32,100,12,"Anstau, Tröpfchen","VE: STW (3:1) Verschnitt (pH: 7,7 / ≈ 7° dH (rechnerisch) / EC ≈ 0.25 ms)","Bewässerungsdüngung",null,"bei jeder Bewässerung","0.5-1.5","13 cm Ø / 0.9 L","31 cm Ø / 12 L","Topfsubstrat: C700 Stender","Topfsubstrat: C700 Stender","40 sonnenliebende Pflanzen ab Blüte (ca. 720 µmol/m²)"]
["Kartoffeln (Solanum tuber.)","Apr-Sep","SO","PAR","Vermehrung-Abreife","Augenstecklinge","sehr gut","4-5",20,20,60,60,17,135.52941176470588,23.04,null,23.04,400,16,"Anstau, Tröpfchen","VE: STW (3:1) Verschnitt (pH: 7,7 / ≈ 7° dH (rechnerisch) / EC ≈ 0.25 ms)","Bewässerungsdüngung",null,"bei jeder Bewässerung","0.5-1.5","13 cm Ø / 0.9 L","31 cm Ø / 12 L","Topfsubstrat: C700 Stender","Topfsubstrat: C700 Stender"]
["Kartoffeln (Solanum tuber.)","Okt-März","WI","PAR","Vermehrung-Abreife","Augenstecklinge","sehr gut","4-5",20,20,60,60,17,135.52941176470588,23.04,null,23.04,400,16,"Anstau, Tröpfchen","VE: STW (3:1) Verschnitt (pH: 7,7 / ≈ 7° dH (rechnerisch) / EC ≈ 0.25 ms)","Bewässerungsdüngung",null,"bei jeder Bewässerung","0.5-1.5","13 cm Ø / 0.9 L","31 cm Ø / 12 L","Topfsubstrat: C700 Stender","Topfsubstrat: C700 Stender"]
["Gerste-Sommer (cv. Golden-Promise)","Apr-Sep","SO","GWH-KAB","Vermehrung-Abreife","Saatgutvermehrung","sehr gut","4-5",18,18,60,60,23,90.759756521739135,20.874744,9.3547439999999984,11.52,200,16,"Anstaubewässerung","VE: STW (3:1) Verschnitt (pH: 7,7 / ≈ 7° dH (rechnerisch) / EC ≈ 0.25 ms)","Bewässerungsdüngung",null,"bei jeder Bewässerung","Bestockung/Schossen: 1.2 - 1.8; Ährenschieben: 0.8-1.5","19 cm Ø / 3 L",null,"Topfsubstrat: C700 Stender",null,"30 lichtempfindliche Pflanzen (ca. 540 µmol/m²s)","Saat/Keimung (18/18°C); Bestockung (12/12°C); Schossen (15/15°C); Ährenschieben (17/17°C); Bestockung/Schossen: N-betont - S wichtig; Ährenschieben: K-betont"]
["Gerste-Sommer (cv. Golden-Promise)","Okt-März","WI","GWH-KAB","Vermehrung-Abreife","Saatgutvermehrung","problematisch","4-5",18,18,60,60,23,75.720606763285033,17.415739555555557,3.0157395555555557,14.4,200,20,"Anstaubewässerung","VE: STW (3:1) Verschnitt (pH: 7,7 / ≈ 7° dH (rechnerisch) / EC ≈ 0.25 ms)","Bewässerungsdüngung",null,"bei jeder Bewässerung","Bestockung/Schossen: 1.2 - 1.8; Ährenschieben: 0.8-1.5","19 cm Ø / 3 L",null,"Topfsubstrat: C700 Stender",null,"30 lichtempfindliche Pflanzen (ca. 540 µmol/m²s)","Saat/Keimung (18/18°C); Bestockung (12/12°C); Schossen (15/15°C); Ährenschieben (17/17°C); Bestockung/Schossen: N-betont - S wichtig; Ährenschieben: K-betont"]
["Gerste-Sommer (cv. Golden-Promise)","Apr-Sep","SO","GWH","Vermehrung-Abreife","Saatgutvermehrung","sehr gut","4-5",17,17,null,null,23,71.177399999999992,16.370801999999998,16.370801999999998,0,null,null,"Anstaubewässerung","VE: STW (3:1) Verschnitt (pH: 7,7 / ≈ 7° dH (rechnerisch) / EC ≈ 0.25 ms)","Bewässerungsdüngung",null,"bei jeder Bewässerung","Bestockung/Schossen: 1.2 - 1.8; Ährenschieben: 0.8-1.5","19 cm Ø / 3 L",null,"Topfsubstrat: C700 Stender",null,"70 sonnenliebende Pflanzen Wachstumsphaste  (ca. 1260 µmol/m²*s)","Saat/Keimung (18/18°C); Bestockung (12/12°C); Schossen (15/15°C); Ährenschieben (17/17°C); Bestockung/Schossen: N-betont - S wichtig; Ährenschieben: K-betont"]
["Gerste-Sommer (cv. Golden-Promise)","Okt-März","WI","GWH","Vermehrung-Abreife","Saatgutvermehrung","problematisch","4-5",17,17,null,null,23,38.598018357487923,8.8775442222222232,5.2775442222222226,3.6,50,20,"Anstaubewässerung","VE: STW (3:1) Verschnitt (pH: 7,7 / ≈ 7° dH (rechnerisch) / EC ≈ 0.25 ms)","Bewässerungsdüngung",null,"bei jeder Bewässerung","Bestockung/Schossen: 1.2 - 1.8; Ährenschieben: 0.8-1.5","19 cm Ø / 3 L",null,"Topfsubstrat: C700 Stender",null,null,"Saat/Keimung (18/18°C); Bestockung (12/12°C); Schossen (15/15°C); Ährenschieben (17/17°C); Bestockung/Schossen: N-betont - S wichtig; Ährenschieben: K-betont"]
["Gerste-Sommer (cv. Golden-Promise)","Apr-Sep","SO","PAR","Vermehrung-Abreife","Saatgutvermehrung","sehr gut","4-5",18,17,60,60,23,100.17391304347827,23.04,null,23.04,400,16,"Anstaubewässerung","VE: STW (3:1) Verschnitt (pH: 7,7 / ≈ 7° dH (rechnerisch) / EC ≈ 0.25 ms)","Bewässerungsdüngung",null,"bei jeder Bewässerung","Bestockung/Schossen: 1.2 - 1.8; Ährenschieben: 0.8-1.5","19 cm Ø / 3 L",null,"Topfsubstrat: C700 Stender",null,null,"Saat/Keimung (18/18°C); Bestockung (12/12°C); Schossen (15/15°C); Ährenschieben (17/17°C); Bestockung/Schossen: N-betont - S wichtig; Ährenschieben: K-betont"]
["Gerste-Sommer (cv. Golden-Promise)","Okt-März","WI","PAR","Vermehrung-Abreife","Saatgutvermehrung","sehr gut","4-5",18,17,60,60,23,100.17391304347827,23.04,null,23.04,400,16,"Anstaubewässerung","VE: STW (3:1) Verschnitt (pH: 7,7 / ≈ 7° dH (rechnerisch) / EC ≈ 0.25 ms)","Bewässerungsdüngung",null,"bei jeder Bewässerung","Bestockung/Schossen: 1.2 - 1.8; Ährenschieben: 0.8-1.5","19 cm Ø / 3 L",null,"Topfsubstrat: C700 Stender",null,null,"Saat/Keimung (18/18°C); Bestockung (12/12°C); Schossen (15/15°C); Ährenschieben (17/17°C); Bestockung/Schossen: N-betont - S wichtig; Ährenschieben: K-betont"]
["Gerste-Sommer (Hordeum vulg.)","Apr-Sep","SO","GWH-KAB","Vermehrung-Abreife","Saatgutvermehrung","sehr gut","4-5",18,18,60,60,23,90.759756521739135,20.874744,9.3547439999999984,11.52,200,16,"Anstaubewässerung","VE: STW (3:1) Verschnitt (pH: 7,7 / ≈ 7° dH (rechnerisch) / EC ≈ 0.25 ms)","Bewässerungsdüngung",null,"bei jeder Bewässerung","Bestockung/Schossen: 1.2 - 1.8; Ährenschieben: 0.8-1.5","19 cm Ø / 3 L",null,"Topfsubstrat: C700 Stender",null,"30 lichtempfindliche Pflanzen (ca. 540 µmol/m²s)","Bestockung/Schossen: N-betont - S wichtig; Ährenschieben: K-betont"]
["Gerste-Sommer (Hordeum vulg.)","Okt-März","WI","GWH-KAB","Vermehrung-Abreife","Saatgutvermehrung","problematisch","4-5",17,17,60,60,23,75.720606763285033,17.415739555555557,3.0157395555555557,14.4,200,20,"Anstaubewässerung","VE: STW (3:1) Verschnitt (pH: 7,7 / ≈ 7° dH (rechnerisch) / EC ≈ 0.25 ms)","Bewässerungsdüngung",null,"bei jeder Bewässerung","Bestockung/Schossen: 1.2 - 1.8; Ährenschieben: 0.8-1.5","19 cm Ø / 3 L",null,"Topfsubstrat: C700 Stender",null,"30 lichtempfindliche Pflanzen (ca. 540 µmol/m²s)","Bestockung/Schossen: N-betont - S wichtig; Ährenschieben: K-betont"]
["Gerste-Sommer (Hordeum vulg.)","Apr-Sep","SO","GWH","Vermehrung-Abreife","Saatgutvermehrung","sehr gut","4-5",17,17,null,null,23,71.177399999999992,16.370801999999998,16.370801999999998,0,null,null,"Anstaubewässerung","VE: STW (3:1) Verschnitt (pH: 7,7 / ≈ 7° dH (rechnerisch) / EC ≈ 0.25 ms)","Bewässerungsdüngung",null,"bei jeder Bewässerung","Bestockung/Schossen: 1.2 - 1.8; Ährenschieben: 0.8-1.5","19 cm Ø / 3 L",null,"Topfsubstrat: C700 Stender",null,"70 sonnenliebende Pflanzen Wachstumsphaste  (ca. 1260 µmol/m²*s)","Bestockung/Schossen: N-betont - S wichtig; Ährenschieben: K-betont"]
["Gerste-Sommer (Hordeum vulg.)","Okt-März","WI","GWH","Vermehrung-Abreife","Saatgutvermehrung","problematisch","4-5",17,17,null,null,23,38.598018357487923,8.8775442222222232,5.2775442222222226,3.6,50,20,"Anstaubewässerung","VE: STW (3:1) Verschnitt (pH: 7,7 / ≈ 7° dH (rechnerisch) / EC ≈ 0.25 ms)","Bewässerungsdüngung",null,"bei jeder Bewässerung","Bestockung/Schossen: 1.2 - 1.8; Ährenschieben: 0.8-1.5","19 cm Ø / 3 L",null,"Topfsubstrat: C700 Stender",null,null,"Bestockung/Schossen: N-betont - S wichtig; Ährenschieben: K-betont"]
["Gerste-Sommer (Hordeum vulg.)","Apr-Sep","SO","PAR","Vermehrung-Abreife","Saatgutvermehrung","sehr gut","4-5",18,17,60,60,23,100.17391304347827,23.04,null,23.04,400,16,"Anstaubewässerung","VE: STW (3:1) Verschnitt (pH: 7,7 / ≈ 7° dH (rechnerisch) / EC ≈ 0.25 ms)","Bewässerungsdüngung",null,"bei jeder Bewässerung","Bestockung/Schossen: 1.2 - 1.8; Ährenschieben: 0.8-1.5","19 cm Ø / 3 L",null,"Topfsubstrat: C700 Stender",null,null,"Bestockung/Schossen: N-betont - S wichtig; Ährenschieben: K-betont"]
["Gerste-Sommer (Hordeum vulg.)","Okt-März","WI","PAR","Vermehrung-Abreife","Saatgutvermehrung","sehr gut","4-5",18,17,60,60,23,100.17391304347827,23.04,null,23.04,400,16,"Anstaubewässerung","VE: STW (3:1) Verschnitt (pH: 7,7 / ≈ 7° dH (rechnerisch) / EC ≈ 0.25 ms)","Bewässerungsdüngung",null,"bei jeder Bewässerung","Bestockung/Schossen: 1.2 - 1.8; Ährenschieben: 0.8-1.5","19 cm Ø / 3 L",null,"Topfsubstrat: C700 Stender",null,null,"Bestockung/Schossen: N-betont - S wichtig; Ährenschieben: K-betont"]
["Gerste-Winter (Hordeum vulg.)","Apr-Sep","SO","GWH-KAB","Vermehrung-Abreife","Saatgutvermehrung","sehr gut","6-8",18,18,60,60,23,{"$f":"(100*O20)/M20","v":90.759756521739135},{"$f":"(P20+Q20)","v":20.874744},9.3547439999999984,{"$f":"R20*S20*0.0036","v":11.52},200,16,"Anstaubewässerung","VE: STW (3:1) Verschnitt (pH: 7,7 / ≈ 7° dH (rechnerisch) / EC ≈ 0.25 ms)","Bewässerungsdüngung",null,"bei jeder Bewässerung","Bestockung/Schossen: 1.2 - 1.8; Ährenschieben: 0.8-1.5","19 cm Ø / 3 L",null,"Topfsubstrat: C700 Stender",null,"30 lichtempfindliche Pflanzen (ca. 540 µmol/m²s)","3-4 Wochen Vorkultur (18°C); 8-12 Wochen Vernalisation (8°C); Bestockung/Schossen: N-betont - S wichtig; Ährenschieben: K-betont"]
["Gerste-Winter (Hordeum vulg.)","Okt-März","WI","GWH-KAB","Vermehrung-Abreife","Saatgutvermehrung","problematisch","6-8",17,17,60,60,23,75.720606763285033,17.415739555555557,3.0157395555555557,14.4,200,20,"Anstaubewässerung","VE: STW (3:1) Verschnitt (pH: 7,7 / ≈ 7° dH (rechnerisch) / EC ≈ 0.25 ms)","Bewässerungsdüngung",null,"bei jeder Bewässerung","Bestockung/Schossen: 1.2 - 1.8; Ährenschieben: 0.8-1.5","19 cm Ø / 3 L",null,"Topfsubstrat: C700 Stender",null,"30 lichtempfindliche Pflanzen (ca. 540 µmol/m²s)","3-4 Wochen Vorkultur (18°C); 8-12 Wochen Vernalisation (8°C); Bestockung/Schossen: N-betont - S wichtig; Ährenschieben: K-betont"]
["Gerste-Winter (Hordeum vulg.)","Apr-Sep","SO","GWH","Vermehrung-Abreife","Saatgutvermehrung","sehr gut","6-8",17,17,null,null,23,71.177399999999992,16.370801999999998,16.370801999999998,0,null,null,"Anstaubewässerung","VE: STW (3:1) Verschnitt (pH: 7,7 / ≈ 7° dH (rechnerisch) / EC ≈ 0.25 ms)","Bewässerungsdüngung",null,"bei jeder Bewässerung","Bestockung/Schossen: 1.2 - 1.8; Ährenschieben: 0.8-1.5","19 cm Ø / 3 L",null,"Topfsubstrat: C700 Stender",null,"70 sonnenliebende Pflanzen Wachstumsphaste  (ca. 1260 µmol/m²*s)","3-4 Wochen Vorkultur (18°C); 8-12 Wochen Vernalisation (8°C); Bestockung/Schossen: N-betont - S wichtig; Ährenschieben: K-betont"]
["Gerste-Winter (Hordeum vulg.)","Okt-März","WI","GWH","Vermehrung-Abreife","Saatgutvermehrung","problematisch","6-8",17,17,null,null,23,38.598018357487923,8.8775442222222232,5.2775442222222226,3.6,50,20,"Anstaubewässerung","VE: STW (3:1) Verschnitt (pH: 7,7 / ≈ 7° dH (rechnerisch) / EC ≈ 0.25 ms)","Bewässerungsdüngung",null,"bei jeder Bewässerung","Bestockung/Schossen: 1.2 - 1.8; Ährenschieben: 0.8-1.5","19 cm Ø / 3 L",null,"Topfsubstrat: C700 Stender",null,null,"3-4 Wochen Vorkultur (18°C); 8-12 Wochen Vernalisation (8°C); Bestockung/Schossen: N-betont - S wichtig; Ährenschieben: K-betont"]
["Gerste-Winter (Hordeum vulg.)","Apr-Sep","SO","PAR","Vermehrung-Abreife","Saatgutvermehrung","sehr gut","6-8",18,17,60,60,23,100.17391304347827,23.04,null,23.04,400,16,"Anstaubewässerung","VE: STW (3:1) Verschnitt (pH: 7,7 / ≈ 7° dH (rechnerisch) / EC ≈ 0.25 ms)","Bewässerungsdüngung",null,"bei jeder Bewässerung","Bestockung/Schossen: 1.2 - 1.8; Ährenschieben: 0.8-1.5","19 cm Ø / 3 L",null,"Topfsubstrat: C700 Stender",null,null,"3-4 Wochen Vorkultur (18°C); 8-12 Wochen Vernalisation (8°C); Bestockung/Schossen: N-betont - S wichtig; Ährenschieben: K-betont"]
["Gerste-Winter (Hordeum vulg.)","Okt-März","WI","PAR","Vermehrung-Abreife","Saatgutvermehrung","sehr gut","6-8",18,17,60,60,23,100.17391304347827,23.04,null,23.04,400,16,"Anstaubewässerung","VE: STW (3:1) Verschnitt (pH: 7,7 / ≈ 7° dH (rechnerisch) / EC ≈ 0.25 ms)","Bewässerungsdüngung",null,"bei jeder Bewässerung","Bestockung/Schossen: 1.2 - 1.8; Ährenschieben: 0.8-1.5","19 cm Ø / 3 L",null,"Topfsubstrat: C700 Stender",null,null,"3-4 Wochen Vorkultur (18°C); 8-12 Wochen Vernalisation (8°C); Bestockung/Schossen: N-betont - S wichtig; Ährenschieben: K-betont"]
["Tomaten-Langkultur","Apr-Sep","SO","GWH-KAB","Vermehrung-Abreife","Stecklinge / Aussaat","sehr gut","4-5",19,19,60,60,25,95.018976000000009,23.754743999999999,9.3547439999999984,14.4,200,20,"Tröpfchenbewässerung","VE: STW (3:1) Verschnitt (pH: 7,7 / ≈ 7° dH (rechnerisch) / EC ≈ 0.25 ms)","Bewässerungsdüngung",null,"bei jeder Bewässerung","1.5 - 3.0","13 cm Ø / 0.9 L","31 cm Ø / 12 L","Topfsubstrat: C700 Stender","Topfsubstrat: C700 Stender","45 sonnenliebende Pflanzen ab Blüte (ca. 810 µmol/m²)"]
["Tomaten-Langkultur","Okt-März","WI","GWH-KAB","Vermehrung-Abreife","Stecklinge / Aussaat","problematisch","4-5",16,16,60,60,25,69.66295822222223,17.415739555555557,3.0157395555555557,14.4,200,20,"Tröpfchenbewässerung","VE: STW (3:1) Verschnitt (pH: 7,7 / ≈ 7° dH (rechnerisch) / EC ≈ 0.25 ms)","Bewässerungsdüngung",null,"bei jeder Bewässerung","1.5 - 3.0","13 cm Ø / 0.9 L","31 cm Ø / 12 L","Topfsubstrat: C700 Stender","Topfsubstrat: C700 Stender","45 sonnenliebende Pflanzen ab Blüte (ca. 810 µmol/m²)"]
["Tomaten-Langkultur","Apr-Sep","SO","GWH","Vermehrung-Abreife","Stecklinge / Aussaat","sehr gut","4-5",19,19,null,null,25,79.883207999999996,19.970801999999999,16.370801999999998,3.6,50,20,"Tröpfchenbewässerung","VE: STW (3:1) Verschnitt (pH: 7,7 / ≈ 7° dH (rechnerisch) / EC ≈ 0.25 ms)","Bewässerungsdüngung",null,"bei jeder Bewässerung","1.5 - 3.0","13 cm Ø / 0.9 L","31 cm Ø / 12 L","Topfsubstrat: C700 Stender","Topfsubstrat: C700 Stender","45 sonnenliebende Pflanzen ab Blüte (ca. 810 µmol/m²)"]
["Tomaten-Langkultur","Okt-März","WI","GWH","Vermehrung-Abreife","Stecklinge / Aussaat","problematisch","4-5",16,16,null,null,25,35.510176888888893,8.8775442222222232,5.2775442222222226,3.6,50,20,"Tröpfchenbewässerung","VE: STW (3:1) Verschnitt (pH: 7,7 / ≈ 7° dH (rechnerisch) / EC ≈ 0.25 ms)","Bewässerungsdüngung",null,"bei jeder Bewässerung","1.5 - 3.0","13 cm Ø / 0.9 L","31 cm Ø / 12 L","Topfsubstrat: C700 Stender","Topfsubstrat: C700 Stender","45 sonnenliebende Pflanzen ab Blüte (ca. 810 µmol/m²)"]
["Tomaten-Langkultur","Apr-Sep","SO","PAR","Vermehrung-Abreife","Stecklinge / Aussaat","gut","4-5",19,19,60,60,25,92.16,23.04,null,23.04,400,16,"Tröpfchenbewässerung","VE: STW (3:1) Verschnitt (pH: 7,7 / ≈ 7° dH (rechnerisch) / EC ≈ 0.25 ms)","Bewässerungsdüngung",null,"bei jeder Bewässerung","1.5 - 3.0","13 cm Ø / 0.9 L","31 cm Ø / 12 L","Topfsubstrat: C700 Stender","Topfsubstrat: C700 Stender","45 sonnenliebende Pflanzen ab Blüte (ca. 810 µmol/m²)"]
["Tomaten-Langkultur","Okt-März","WI","PAR","Vermehrung-Abreife","Stecklinge / Aussaat","gut","4-5",16,16,60,60,25,92.16,23.04,null,23.04,400,16,"Tröpfchenbewässerung","VE: STW (3:1) Verschnitt (pH: 7,7 / ≈ 7° dH (rechnerisch) / EC ≈ 0.25 ms)","Bewässerungsdüngung",null,"bei jeder Bewässerung","1.5 - 3.0","13 cm Ø / 0.9 L","31 cm Ø / 12 L","Topfsubstrat: C700 Stender","Topfsubstrat: C700 Stender","45 sonnenliebende Pflanzen ab Blüte (ca. 810 µmol/m²)"]
["Tomaten-Kurzkultur","Apr-Sep","SO","GWH-KAB","Vermehrung-Abreife","Stecklinge / Aussaat","sehr gut","4-5",19,19,60,60,25,37.418975999999994,9.3547439999999984,9.3547439999999984,0,0,0,"Anstaubewässerung","VE: STW (3:1) Verschnitt (pH: 7,7 / ≈ 7° dH (rechnerisch) / EC ≈ 0.25 ms)","Bewässerungsdüngung",null,"bei jeder Bewässerung","1.5 - 3.0","13 cm Ø / 0.9 L",null,"Topfsubstrat: C700 Stender","Topfsubstrat: C700 Stender","45 sonnenliebende Pflanzen ab Blüte (ca. 810 µmol/m²)"]
["Tomaten-Kurzkultur","Okt-März","WI","GWH-KAB","Vermehrung-Abreife","Stecklinge / Aussaat","problematisch","4-5",16,16,60,60,25,69.66295822222223,17.415739555555557,3.0157395555555557,14.4,200,20,"Anstaubewässerung","VE: STW (3:1) Verschnitt (pH: 7,7 / ≈ 7° dH (rechnerisch) / EC ≈ 0.25 ms)","Bewässerungsdüngung",null,"bei jeder Bewässerung","1.5 - 3.0","13 cm Ø / 0.9 L",null,"Topfsubstrat: C700 Stender","Topfsubstrat: C700 Stender","45 sonnenliebende Pflanzen ab Blüte (ca. 810 µmol/m²)"]
["Tomaten-Kurzkultur","Apr-Sep","SO","GWH","Vermehrung-Abreife","Stecklinge / Aussaat","sehr gut","4-5",19,19,null,null,25,65.483207999999991,16.370801999999998,16.370801999999998,0,0,0,"Anstaubewässerung","VE: STW (3:1) Verschnitt (pH: 7,7 / ≈ 7° dH (rechnerisch) / EC ≈ 0.25 ms)","Bewässerungsdüngung",null,"bei jeder Bewässerung","1.5 - 3.0","13 cm Ø / 0.9 L",null,"Topfsubstrat: C700 Stender","Topfsubstrat: C700 Stender","45 sonnenliebende Pflanzen ab Blüte (ca. 810 µmol/m²)"]
["Tomaten-Kurzkultur","Okt-März","WI","GWH","Vermehrung-Abreife","Stecklinge / Aussaat","problematisch","4-5",16,16,null,null,25,35.510176888888893,8.8775442222222232,5.2775442222222226,3.6,50,20,"Anstaubewässerung","VE: STW (3:1) Verschnitt (pH: 7,7 / ≈ 7° dH (rechnerisch) / EC ≈ 0.25 ms)","Bewässerungsdüngung",null,"bei jeder Bewässerung","1.5 - 3.0","13 cm Ø / 0.9 L",null,"Topfsubstrat: C700 Stender","Topfsubstrat: C700 Stender","45 sonnenliebende Pflanzen ab Blüte (ca. 810 µmol/m²)"]
["Tomaten-Kurzkultur","Apr-Sep","SO","PAR","Vermehrung-Abreife","Stecklinge / Aussaat","sehr gut","4-5",19,19,60,60,25,92.16,{"$f":"(P36+Q36)","v":23.04},null,23.04,400,16,"Anstaubewässerung","VE: STW (3:1) Verschnitt (pH: 7,7 / ≈ 7° dH (rechnerisch) / EC ≈ 0.25 ms)","Bewässerungsdüngung",null,"bei jeder Bewässerung","1.5 - 3.0","13 cm Ø / 0.9 L",null,"Topfsubstrat: C700 Stender","Topfsubstrat: C700 Stender","45 sonnenliebende Pflanzen ab Blüte (ca. 810 µmol/m²)"]
["Tomaten-Kurzkultur","Okt-März","WI","PAR","Vermehrung-Abreife","Stecklinge / Aussaat","problematisch","4-5",16,16,60,60,25,92.16,23.04,null,23.04,400,16,"Anstaubewässerung","VE: STW (3:1) Verschnitt (pH: 7,7 / ≈ 7° dH (rechnerisch) / EC ≈ 0.25 ms)","Bewässerungsdüngung",null,"bei jeder Bewässerung","1.5 - 3.0","13 cm Ø / 0.9 L",null,"Topfsubstrat: C700 Stender","Topfsubstrat: C700 Stender","45 sonnenliebende Pflanzen ab Blüte (ca. 810 µmol/m²)"]
["Arabidopsis spp.","Apr-Sep","SO","GWH-KAB","Aussaat-Ernte","Aussaat","gut","3-4",22,18,50,60,11,85.043127272727261,9.3547439999999984,9.3547439999999984,0,null,null,"Anstaubewässerung","VE: STW (1:1) Verschnitt (≈ 11° dH (rechnerisch))","Bewässerungsdüngung",null,"bei jeder Bewässerung","0.5-1","9 cm Ø / 0.3 L",null,"Topfsubstrat: C700 Stender",null,"30 lichtempfindliche Pflanzen (ca. 540 µmol/m²s)"]
["Arabidopsis spp.","Okt-März","WI","GWH-KAB","Aussaat-Ernte","Aussaat","gut","3-4",22,18,50,60,11,105.96126868686869,11.655739555555556,3.0157395555555557,8.64,150,16,"Anstaubewässerung","VE: STW (1:1) Verschnitt (≈ 11° dH (rechnerisch))","Bewässerungsdüngung",null,"bei jeder Bewässerung","0.5-1","9 cm Ø / 0.3 L",null,"Topfsubstrat: C700 Stender",null,"30 lichtempfindliche Pflanzen (ca. 540 µmol/m²s)"]
["Arabidopsis spp.","Apr-Sep","SO","GWH","Aussaat-Ernte","Aussaat","gut","3-4",22,18,50,60,11,{"$f":"(100*O40)/M40","v":148.82547272727271},16.370801999999998,16.370801999999998,{"$f":"R40*S40*0.0036","v":0},null,null,"Anstaubewässerung","VE: STW (1:1) Verschnitt (≈ 11° dH (rechnerisch))","Bewässerungsdüngung",null,"bei jeder Bewässerung","0.5-1","9 cm Ø / 0.3 L",null,"Topfsubstrat: C700 Stender",null,"30 lichtempfindliche Pflanzen (ca. 540 µmol/m²s)"]
["Arabidopsis spp.","Okt-März","WI","GWH","Aussaat-Ernte","Aussaat","gut","3-4",22,18,50,60,11,74.159492929292938,8.1575442222222225,5.2775442222222226,2.88,50,16,"Anstaubewässerung","VE: STW (1:1) Verschnitt (≈ 11° dH (rechnerisch))","Bewässerungsdüngung",null,"bei jeder Bewässerung","0.5-1","9 cm Ø / 0.3 L",null,"Topfsubstrat: C700 Stender",null,"30 lichtempfindliche Pflanzen (ca. 540 µmol/m²s)"]
["Arabidopsis spp.","Apr-Sep","SO","PAR","Aussaat-Ernte","Aussaat","sehr gut","3-4",22,18,50,60,11,78.545454545454547,8.64,null,8.64,150,16,"Anstaubewässerung","VE: STW (1:1) Verschnitt (≈ 11° dH (rechnerisch))","Bewässerungsdüngung",null,"bei jeder Bewässerung","0.5-1","9 cm Ø / 0.3 L",null,"Topfsubstrat: C700 Stender"]
["Arabidopsis spp.","Okt-März","WI","PAR","Aussaat-Ernte","Aussaat","sehr gut","3-4",22,18,50,60,11,78.545454545454547,8.64,null,8.64,150,16,"Anstaubewässerung","VE: STW (1:1) Verschnitt (≈ 11° dH (rechnerisch))","Bewässerungsdüngung",null,"bei jeder Bewässerung","0.5-1","9 cm Ø / 0.3 L",null,"Topfsubstrat: C700 Stender"]
["Lotus","Apr-Sep","SO","GWH-KAB","Saatgut-Ernte","Aussaat","gut",8,20,20,60,60,20,104.37372000000001,20.874744,9.3547439999999984,11.52,200,16,"Anstaubewässerung","VE: STW (1:1) Verschnitt (≈ 11° dH (rechnerisch))","Bewässerungsdüngung","Universol-Blue","bei jeder Bewässerung","0.3-0.6 / 1.4 - 2.0 / 1.4 - 2.0","9 cm Ø / 0.3 L","17 cm Ø / 2 L","C700 : E910 (2:1) + 10% Bims (ZL*)","C700 : E910 (2:1) + 10% Bims (ZL*)","40 sonnenliebende Pflanzen ab Blüte (ca. 720 µmol/m²)"]
["Lotus","Okt-März","WI","GWH-KAB","Saatgut-Ernte","Aussaat","gut",8,20,20,60,60,20,72.678697777777785,14.535739555555555,3.0157395555555557,11.52,200,16,"Anstaubewässerung","VE: STW (1:1) Verschnitt (≈ 11° dH (rechnerisch))","Bewässerungsdüngung","Universol-Blue","bei jeder Bewässerung","0.3-0.6 / 1.4 - 2.0 / 1.4 - 2.0","9 cm Ø / 0.3 L","17 cm Ø / 2 L","C700 : E910 (2:1) + 10% Bims (ZL*)","C700 : E910 (2:1) + 10% Bims (ZL*)"]
["Lotus","Apr-Sep","SO","GWH","Saatgut-Ernte","Aussaat","problematisch",4,20,20,null,null,20,81.854009999999988,16.370801999999998,16.370801999999998,0,null,null,"Anstaubewässerung","VE: STW (1:1) Verschnitt (≈ 11° dH (rechnerisch))","Bewässerungsdüngung","Universol-Blue","bei jeder Bewässerung","0.3-0.6 / 1.4 - 2.0 / 1.4 - 2.0","9 cm Ø / 0.3 L","17 cm Ø / 2 L","C700 : E910 (2:1) + 10% Bims (ZL*)","C700 : E910 (2:1) + 10% Bims (ZL*)","70 sonnenliebende Pflanzen Wachstumsphaste  (ca. 1260 µmol/m²*s)"]
["Lotus","Okt-März","WI","GWH","Saatgut-Ernte","Aussaat","gut",5,20,20,null,null,20,83.9877211111111,16.797544222222221,5.2775442222222226,11.52,200,16,"Anstaubewässerung","VE: STW (1:1) Verschnitt (≈ 11° dH (rechnerisch))","Bewässerungsdüngung","Universol-Blue","bei jeder Bewässerung","0.3-0.6 / 1.4 - 2.0 / 1.4 - 2.0","9 cm Ø / 0.3 L","17 cm Ø / 2 L","C700 : E910 (2:1) + 10% Bims (ZL*)","C700 : E910 (2:1) + 10% Bims (ZL*)"]
["Lotus","Apr-Sep","SO","PAR","Saatgut-Ernte","Aussaat","sehr gut",8,20,20,60,60,20,115.2,23.04,null,23.04,400,16,"Anstaubewässerung","VE: STW (1:1) Verschnitt (≈ 11° dH (rechnerisch))","Bewässerungsdüngung","Universol-Blue","bei jeder Bewässerung","0.3-0.6 / 1.4 - 2.0 / 1.4 - 2.0","9 cm Ø / 0.3 L","17 cm Ø / 2 L","C700 : E910 (2:1) + 10% Bims (ZL*)","C700 : E910 (2:1) + 10% Bims (ZL*)"]
["Lotus","Okt-März","WI","PAR","Saatgut-Ernte","Aussaat","sehr gut",8,20,20,60,60,20,115.2,23.04,null,23.04,400,16,"Anstaubewässerung","VE: STW (1:1) Verschnitt (≈ 11° dH (rechnerisch))","Bewässerungsdüngung","Universol-Blue","bei jeder Bewässerung","0.3-0.6 / 1.4 - 2.0 / 1.4 - 2.0","9 cm Ø / 0.3 L","17 cm Ø / 2 L","C700 : E910 (2:1) + 10% Bims (ZL*)","C700 : E910 (2:1) + 10% Bims (ZL*)"]
["Erdbeeren (Fragaria spp.)","Apr-Sep","SO","GWH-KAB","Vermehrung-Ernte","Jungpflanzen","sehr gut",8,20,18,60,60,20,104.37372000000001,20.874744,9.3547439999999984,11.52,200,16,"Tröpfchenbewässerung","VE: STW (3:1) Verschnitt (pH: 7,7 / ≈ 7° dH (rechnerisch) / EC ≈ 0.25 ms)","Bewässerungsdüngung",null,"bei jeder Bewässerung","0.5-1","17 cm Ø / 2 L",null,"Topfsubstrat: C700 Stender",null,"40 sonnenliebende Pflanzen ab Blüte (ca. 720 µmol/m²)"]
["Erdbeeren (Fragaria spp.)","Okt-März","WI","GWH-KAB","Vermehrung-Ernte","Jungpflanzen","problematisch",8,20,18,60,60,20,72.678697777777785,14.535739555555555,3.0157395555555557,11.52,200,16,"Tröpfchenbewässerung","VE: STW (3:1) Verschnitt (pH: 7,7 / ≈ 7° dH (rechnerisch) / EC ≈ 0.25 ms)","Bewässerungsdüngung",null,"bei jeder Bewässerung","0.5-1","17 cm Ø / 2 L",null,"Topfsubstrat: C700 Stender",null,"40 sonnenliebende Pflanzen ab Blüte (ca. 720 µmol/m²)"]
["Erdbeeren (Fragaria spp.)","Apr-Sep","SO","GWH","Vermehrung-Ernte","Jungpflanzen","sehr gut",8,20,18,null,null,20,81.854009999999988,16.370801999999998,16.370801999999998,0,null,null,"Tröpfchenbewässerung","VE: STW (3:1) Verschnitt (pH: 7,7 / ≈ 7° dH (rechnerisch) / EC ≈ 0.25 ms)","Bewässerungsdüngung",null,"bei jeder Bewässerung","0.5-1","17 cm Ø / 2 L",null,"Topfsubstrat: C700 Stender",null,"40 sonnenliebende Pflanzen ab Blüte (ca. 720 µmol/m²)"]
["Erdbeeren (Fragaria spp.)","Okt-März","WI","GWH","Vermehrung-Ernte","Jungpflanzen","problematisch",8,20,18,null,null,20,55.187721111111117,11.037544222222223,5.2775442222222226,5.76,100,16,"Tröpfchenbewässerung","VE: STW (3:1) Verschnitt (pH: 7,7 / ≈ 7° dH (rechnerisch) / EC ≈ 0.25 ms)","Bewässerungsdüngung",null,"bei jeder Bewässerung","0.5-1","17 cm Ø / 2 L",null,"Topfsubstrat: C700 Stender",null,"40 sonnenliebende Pflanzen ab Blüte (ca. 720 µmol/m²)"]
["Erdbeeren (Fragaria spp.)","Apr-Sep","SO","PAR","Vermehrung-Ernte","Jungpflanzen","sehr gut",8,20,18,60,60,20,100.8,20.16,null,20.16,350,16,"Tröpfchenbewässerung","VE: STW (3:1) Verschnitt (pH: 7,7 / ≈ 7° dH (rechnerisch) / EC ≈ 0.25 ms)","Bewässerungsdüngung",null,"bei jeder Bewässerung","0.5-1","17 cm Ø / 2 L",null,"Topfsubstrat: C700 Stender"]
["Erdbeeren (Fragaria spp.)","Okt-März","WI","PAR","Vermehrung-Ernte","Jungpflanzen","sehr gut",8,20,18,60,60,20,100.8,20.16,null,20.16,350,16,"Tröpfchenbewässerung","VE: STW (3:1) Verschnitt (pH: 7,7 / ≈ 7° dH (rechnerisch) / EC ≈ 0.25 ms)","Bewässerungsdüngung",null,"bei jeder Bewässerung","0.5-1","17 cm Ø / 2 L",null,"Topfsubstrat: C700 Stender"]
["Mais (Zea mays)","Apr-Sep","SO","GWH-KAB","Vermehrung-Ernte","Aussaat","gut",6,24,22,60,60,25,83.498975999999999,20.874744,9.3547439999999984,11.52,200,16,"Tröpfchenbewässerung","VE: STW (3:1) Verschnitt (pH: 7,7 / ≈ 7° dH (rechnerisch) / EC ≈ 0.25 ms)","Bewässerungsdüngung",null,"bei jeder Bewässerung","0.5-1","33 cm Ø / 15 L",null,"Topfsubstrat: C700 Stender",null,"keine Schattierung"]
["Mais (Zea mays)","Okt-März","WI","GWH-KAB","Vermehrung-Ernte","Aussaat","problematisch",6,24,22,60,60,25,58.142958222222227,14.535739555555555,3.0157395555555557,11.52,200,16,"Tröpfchenbewässerung","VE: STW (3:1) Verschnitt (pH: 7,7 / ≈ 7° dH (rechnerisch) / EC ≈ 0.25 ms)","Bewässerungsdüngung",null,"bei jeder Bewässerung","0.5-1","33 cm Ø / 15 L",null,"Topfsubstrat: C700 Stender",null,"keine Schattierung"]
["Mais (Zea mays)","Apr-Sep","SO","GWH","Vermehrung-Ernte","Aussaat","sehr gut",6,24,22,null,null,25,125.96320799999998,31.490801999999995,16.370801999999998,15.12,350,12,"Tröpfchenbewässerung","VE: STW (3:1) Verschnitt (pH: 7,7 / ≈ 7° dH (rechnerisch) / EC ≈ 0.25 ms)","Bewässerungsdüngung",null,"bei jeder Bewässerung","0.5-1","33 cm Ø / 15 L",null,"Topfsubstrat: C700 Stender",null,"keine Schattierung"]
["Mais (Zea mays)","Okt-März","WI","GWH","Vermehrung-Ernte","Aussaat","problematisch",6,24,22,null,null,25,101.75017688888889,25.437544222222222,5.2775442222222226,20.16,350,16,"Tröpfchenbewässerung","VE: STW (3:1) Verschnitt (pH: 7,7 / ≈ 7° dH (rechnerisch) / EC ≈ 0.25 ms)","Bewässerungsdüngung",null,"bei jeder Bewässerung","0.5-1","33 cm Ø / 15 L",null,"Topfsubstrat: C700 Stender",null,"keine Schattierung"]
["Mais (Zea mays)","Apr-Sep","SO","PAR","Vermehrung-Ernte","Aussaat","sehr gut",6,24,22,60,60,25,92.16,23.04,null,23.04,400,16,"Tröpfchenbewässerung","VE: STW (3:1) Verschnitt (pH: 7,7 / ≈ 7° dH (rechnerisch) / EC ≈ 0.25 ms)","Bewässerungsdüngung",null,"bei jeder Bewässerung","0.5-1","33 cm Ø / 15 L",null,"Topfsubstrat: C700 Stender"]
["Mais (Zea mays)","Okt-März","WI","PAR","Vermehrung-Ernte","Aussaat","sehr gut",6,24,22,60,60,25,92.16,23.04,null,23.04,400,16,"Tröpfchenbewässerung","VE: STW (3:1) Verschnitt (pH: 7,7 / ≈ 7° dH (rechnerisch) / EC ≈ 0.25 ms)","Bewässerungsdüngung",null,"bei jeder Bewässerung","0.5-1","33 cm Ø / 15 L",null,"Topfsubstrat: C700 Stender"]
["Crassocephalum","Apr-Sep","SO","GWH-KAB","Vermehrung-Ernte","Aussaat","gut",6,25,25,65,65,25,83.498975999999999,20.874744,9.3547439999999984,11.52,200,16,"Tröpfchenbewässerung","VE: STW (3:1) Verschnitt (pH: 7,7 / ≈ 7° dH (rechnerisch) / EC ≈ 0.25 ms)","Bewässerungsdüngung",null,"bei jeder Bewässerung","0.5-1","19 cm Ø / 3 L","31 cm Ø / 12 L","Topfsubstrat: C700 Stender","Topfsubstrat: C700 Stender","80 sehr sonnenliebende Pflanzen (Wachstumsphase)"]
["Crassocephalum","Okt-März","WI","GWH-KAB","Vermehrung-Ernte","Aussaat","problematisch",6,25,25,65,65,25,58.142958222222227,14.535739555555555,3.0157395555555557,11.52,200,16,"Tröpfchenbewässerung","VE: STW (3:1) Verschnitt (pH: 7,7 / ≈ 7° dH (rechnerisch) / EC ≈ 0.25 ms)","Bewässerungsdüngung",null,"bei jeder Bewässerung","0.5-1","19 cm Ø / 3 L","31 cm Ø / 12 L","Topfsubstrat: C700 Stender","Topfsubstrat: C700 Stender","80 sehr sonnenliebende Pflanzen (Wachstumsphase)"]
["Crassocephalum","Apr-Sep","SO","GWH","Vermehrung-Ernte","Aussaat","sehr gut",6,25,25,null,null,25,65.483207999999991,16.370801999999998,16.370801999999998,0,null,null,"Tröpfchenbewässerung","VE: STW (3:1) Verschnitt (pH: 7,7 / ≈ 7° dH (rechnerisch) / EC ≈ 0.25 ms)","Bewässerungsdüngung",null,"bei jeder Bewässerung","0.5-1","19 cm Ø / 3 L","31 cm Ø / 12 L","Topfsubstrat: C700 Stender","Topfsubstrat: C700 Stender","80 sehr sonnenliebende Pflanzen (Wachstumsphase)"]
["Crassocephalum","Okt-März","WI","GWH","Vermehrung-Ernte","Aussaat","problematisch",6,25,25,null,null,25,32.63017688888889,8.1575442222222225,5.2775442222222226,2.88,50,16,"Tröpfchenbewässerung","VE: STW (3:1) Verschnitt (pH: 7,7 / ≈ 7° dH (rechnerisch) / EC ≈ 0.25 ms)","Bewässerungsdüngung",null,"bei jeder Bewässerung","0.5-1","19 cm Ø / 3 L","31 cm Ø / 12 L","Topfsubstrat: C700 Stender","Topfsubstrat: C700 Stender","80 sehr sonnenliebende Pflanzen (Wachstumsphase)"]
["Crassocephalum","Apr-Sep","SO","PAR","Vermehrung-Ernte","Aussaat","sehr gut",6,25,25,65,65,25,92.16,23.04,null,23.04,400,16,"Tröpfchenbewässerung","VE: STW (3:1) Verschnitt (pH: 7,7 / ≈ 7° dH (rechnerisch) / EC ≈ 0.25 ms)","Bewässerungsdüngung",null,"bei jeder Bewässerung","0.5-1","19 cm Ø / 3 L","31 cm Ø / 12 L","Topfsubstrat: C700 Stender","Topfsubstrat: C700 Stender"]
["Crassocephalum","Okt-März","WI","PAR","Vermehrung-Ernte","Aussaat","sehr gut",6,25,25,65,65,25,92.16,23.04,null,23.04,400,16,"Tröpfchenbewässerung","VE: STW (3:1) Verschnitt (pH: 7,7 / ≈ 7° dH (rechnerisch) / EC ≈ 0.25 ms)","Bewässerungsdüngung",null,"bei jeder Bewässerung","0.5-1","19 cm Ø / 3 L","31 cm Ø / 12 L","Topfsubstrat: C700 Stender","Topfsubstrat: C700 Stender"]
["Sonnenblumen (Helianthus spp.)","Apr-Sep","SO","GWH-KAB","Vermehrung-Ernte","Aussaat","gut",4,19,19,"65","65",23,90.759756521739135,20.874744,9.3547439999999984,11.52,200,16,"Anstaubewässerung","VE: STW (3:1) Verschnitt (pH: 7,7 / ≈ 7° dH (rechnerisch) / EC ≈ 0.25 ms)","Bewässerungsdüngung",null,"bei jeder Bewässerung","0.5-1",null,"19 cm Ø / 3 L","Topfsubstrat: C700 Stender",null,"60 sonnenliebende Pflanzen Wachstumsphaste  (ca. 1080 µmol/m²*s)"]
["Sonnenblumen (Helianthus spp.)","Okt-März","WI","GWH-KAB","Vermehrung-Ernte","Aussaat","problematisch",4,19,19,"65","65",23,63.198867632850245,14.535739555555555,3.0157395555555557,11.52,200,16,"Anstaubewässerung","VE: STW (3:1) Verschnitt (pH: 7,7 / ≈ 7° dH (rechnerisch) / EC ≈ 0.25 ms)","Bewässerungsdüngung",null,"bei jeder Bewässerung","0.5-1",null,"19 cm Ø / 3 L","Topfsubstrat: C700 Stender",null,"60 sonnenliebende Pflanzen Wachstumsphaste  (ca. 1080 µmol/m²*s)"]
["Sonnenblumen (Helianthus spp.)","Apr-Sep","SO","GWH","Vermehrung-Ernte","Aussaat","sehr gut",4,19,19,null,null,23,83.699139130434773,19.250801999999997,16.370801999999998,2.88,50,16,"Anstaubewässerung","VE: STW (3:1) Verschnitt (pH: 7,7 / ≈ 7° dH (rechnerisch) / EC ≈ 0.25 ms)","Bewässerungsdüngung",null,"bei jeder Bewässerung","0.5-1",null,"19 cm Ø / 3 L","Topfsubstrat: C700 Stender",null,"60 sonnenliebende Pflanzen Wachstumsphaste  (ca. 1080 µmol/m²*s)"]
["Sonnenblumen (Helianthus spp.)","Okt-März","WI","GWH","Vermehrung-Ernte","Aussaat","problematisch",4,19,19,null,null,23,35.467583574879228,8.1575442222222225,5.2775442222222226,2.88,50,16,"Anstaubewässerung","VE: STW (3:1) Verschnitt (pH: 7,7 / ≈ 7° dH (rechnerisch) / EC ≈ 0.25 ms)","Bewässerungsdüngung",null,"bei jeder Bewässerung","0.5-1",null,"19 cm Ø / 3 L","Topfsubstrat: C700 Stender",null,"60 sonnenliebende Pflanzen Wachstumsphaste  (ca. 1080 µmol/m²*s)"]
["Sonnenblumen (Helianthus spp.)","Apr-Sep","SO","PAR","Vermehrung-Ernte","Aussaat","sehr gut",4,19,19,"65","65",23,{"$f":"(100*O72)/M72","v":100.17391304347827},23.04,null,{"$f":"R72*S72*0.0036","v":23.04},400,16,"Anstaubewässerung","VE: STW (3:1) Verschnitt (pH: 7,7 / ≈ 7° dH (rechnerisch) / EC ≈ 0.25 ms)","Bewässerungsdüngung",null,"bei jeder Bewässerung","0.5-1",null,"19 cm Ø / 3 L","Topfsubstrat: C700 Stender"]
["Sonnenblumen (Helianthus spp.)","Okt-März","WI","PAR","Vermehrung-Ernte","Aussaat","sehr gut",4,19,19,"65","65",23,100.17391304347827,{"$f":"(P73+Q73)","v":23.04},null,23.04,400,16,"Anstaubewässerung","VE: STW (3:1) Verschnitt (pH: 7,7 / ≈ 7° dH (rechnerisch) / EC ≈ 0.25 ms)","Bewässerungsdüngung",null,"bei jeder Bewässerung","0.5-1",null,"19 cm Ø / 3 L","Topfsubstrat: C700 Stender"]
["Raps (Brassica napus)","Apr-Sep","SO","GWH-KAB","Vermehrung-Ernte","Aussaat","gut","4-5 / 6-9",17,17,60,60,20,104.37372000000001,20.874744,9.3547439999999984,11.52,200,16,"Anstaubewässerung","VE: STW (3:1) Verschnitt (pH: 7,7 / ≈ 7° dH (rechnerisch) / EC ≈ 0.25 ms)","Bewässerungsdüngung",null,"bei jeder Bewässerung","0.5-1",null,"19 cm Ø / 3 L","Topfsubstrat: C700 Stender",null,"40 sonnenliebende Pflanzen ab Blüte (ca. 720 µmol/m²)","je nach Sorte evt. 3-4 Wochen Vorkultur (18°C); 4 Wochen Vernalization (8°C)"]
["Raps (Brassica napus)","Okt-März","WI","GWH-KAB","Vermehrung-Ernte","Aussaat","problematisch","4-5 / 6-9",17,17,60,60,20,72.678697777777785,14.535739555555555,3.0157395555555557,11.52,200,16,"Anstaubewässerung","VE: STW (3:1) Verschnitt (pH: 7,7 / ≈ 7° dH (rechnerisch) / EC ≈ 0.25 ms)","Bewässerungsdüngung",null,"bei jeder Bewässerung","0.5-1",null,"19 cm Ø / 3 L","Topfsubstrat: C700 Stender",null,"40 sonnenliebende Pflanzen ab Blüte (ca. 720 µmol/m²)","je nach Sorte evt. 3-4 Wochen Vorkultur (18°C); 4 Wochen Vernalization (8°C)"]
["Raps (Brassica napus)","Apr-Sep","SO","GWH","Vermehrung-Ernte","Aussaat","sehr gut","4-5 / 6-9",17,17,null,null,20,81.854009999999988,16.370801999999998,16.370801999999998,0,null,null,"Anstaubewässerung","VE: STW (3:1) Verschnitt (pH: 7,7 / ≈ 7° dH (rechnerisch) / EC ≈ 0.25 ms)","Bewässerungsdüngung",null,"bei jeder Bewässerung","0.5-1",null,"19 cm Ø / 3 L","Topfsubstrat: C700 Stender",null,"40 sonnenliebende Pflanzen ab Blüte (ca. 720 µmol/m²)","je nach Sorte evt. 3-4 Wochen Vorkultur (18°C); 4 Wochen Vernalization (8°C)"]
["Raps (Brassica napus)","Okt-März","WI","GWH","Vermehrung-Ernte","Aussaat","problematisch","4-5 / 6-9",17,17,null,null,20,40.787721111111111,8.1575442222222225,5.2775442222222226,2.88,50,16,"Anstaubewässerung","VE: STW (3:1) Verschnitt (pH: 7,7 / ≈ 7° dH (rechnerisch) / EC ≈ 0.25 ms)","Bewässerungsdüngung",null,"bei jeder Bewässerung","0.5-1",null,"19 cm Ø / 3 L","Topfsubstrat: C700 Stender",null,"40 sonnenliebende Pflanzen ab Blüte (ca. 720 µmol/m²)","je nach Sorte evt. 3-4 Wochen Vorkultur (18°C); 4 Wochen Vernalization (8°C)"]
["Raps (Brassica napus)","Apr-Sep","SO","PAR","Vermehrung-Ernte","Aussaat","sehr gut","4-5 / 6-9",17,17,60,60,20,100.8,20.16,null,20.16,350,16,"Anstaubewässerung","VE: STW (3:1) Verschnitt (pH: 7,7 / ≈ 7° dH (rechnerisch) / EC ≈ 0.25 ms)","Bewässerungsdüngung",null,"bei jeder Bewässerung","0.5-1",null,"19 cm Ø / 3 L","Topfsubstrat: C700 Stender",null,null,"je nach Sorte evt. 3-4 Wochen Vorkultur (18°C); 4 Wochen Vernalization (8°C)"]
["Raps (Brassica napus)","Okt-März","WI","PAR","Vermehrung-Ernte","Aussaat","sehr gut","4-5 / 6-9",17,17,60,60,20,100.8,20.16,null,20.16,350,16,"Anstaubewässerung","VE: STW (3:1) Verschnitt (pH: 7,7 / ≈ 7° dH (rechnerisch) / EC ≈ 0.25 ms)","Bewässerungsdüngung",null,"bei jeder Bewässerung","0.5-1",null,"19 cm Ø / 3 L","Topfsubstrat: C700 Stender",null,null,"je nach Sorte evt. 3-4 Wochen Vorkultur (18°C); 4 Wochen Vernalization (8°C)"]
["Wildtomaten (S. chilense ) Kurzkultur","Apr-Sep","SO","GWH-KAB","Vermehrung-Ernte","Aussaat","sehr gut","4-5",20,20,"60","60",25,95.018976000000009,23.754743999999999,9.3547439999999984,14.4,200,20,"Anstaubewässerung","VE: STW (3:1) Verschnitt (pH: 7,7 / ≈ 7° dH (rechnerisch) / EC ≈ 0.25 ms)","Bewässerungsdüngung",null,"bei jeder Bewässerung","0.8 - 1.2","13 cm Ø / 0.9 L",null,"Anzuchtsubstrat: A200 Stender","Topfsubstrat: C700 Stender","45 sonnenliebende Pflanzen ab Blüte (ca. 810 µmol/m²)"]
["Wildtomaten (S. chilense ) Kurzkultur","Okt-März","WI","GWH-KAB","Vermehrung-Ernte","Aussaat","problematisch","4-5",17,17,"60","60",25,69.66295822222223,17.415739555555557,3.0157395555555557,14.4,200,20,"Anstaubewässerung","VE: STW (3:1) Verschnitt (pH: 7,7 / ≈ 7° dH (rechnerisch) / EC ≈ 0.25 ms)","Bewässerungsdüngung",null,"bei jeder Bewässerung","0.8 - 1.2","13 cm Ø / 0.9 L",null,"Anzuchtsubstrat: A200 Stender","Topfsubstrat: C700 Stender","45 sonnenliebende Pflanzen ab Blüte (ca. 810 µmol/m²)"]
["Wildtomaten (S. chilense ) Kurzkultur","Apr-Sep","SO","GWH","Vermehrung-Ernte","Aussaat","sehr gut","4-5",20,20,"60","60",25,79.883207999999996,19.970801999999999,16.370801999999998,3.6,50,20,"Anstaubewässerung","VE: STW (3:1) Verschnitt (pH: 7,7 / ≈ 7° dH (rechnerisch) / EC ≈ 0.25 ms)","Bewässerungsdüngung",null,"bei jeder Bewässerung","0.8 - 1.2","13 cm Ø / 0.9 L",null,"Anzuchtsubstrat: A200 Stender","Topfsubstrat: C700 Stender","45 sonnenliebende Pflanzen ab Blüte (ca. 810 µmol/m²)"]
["Wildtomaten (S. chilense ) Kurzkultur","Okt-März","WI","GWH","Vermehrung-Ernte","Aussaat","problematisch","4-5",17,17,"60","60",25,35.510176888888893,8.8775442222222232,5.2775442222222226,3.6,50,20,"Anstaubewässerung","VE: STW (3:1) Verschnitt (pH: 7,7 / ≈ 7° dH (rechnerisch) / EC ≈ 0.25 ms)","Bewässerungsdüngung",null,"bei jeder Bewässerung","0.8 - 1.2","13 cm Ø / 0.9 L",null,"Anzuchtsubstrat: A200 Stender","Topfsubstrat: C700 Stender","45 sonnenliebende Pflanzen ab Blüte (ca. 810 µmol/m²)"]
["Wildtomaten (S. chilense ) Kurzkultur","Apr-Sep","SO","PAR","Vermehrung-Ernte","Aussaat","sehr gut","4-5",20,20,"60","60",25,92.16,23.04,null,23.04,400,16,"Anstaubewässerung","VE: STW (3:1) Verschnitt (pH: 7,7 / ≈ 7° dH (rechnerisch) / EC ≈ 0.25 ms)","Bewässerungsdüngung",null,"bei jeder Bewässerung","0.8 - 1.2","13 cm Ø / 0.9 L",null,"Anzuchtsubstrat: A200 Stender","Topfsubstrat: C700 Stender","45 sonnenliebende Pflanzen ab Blüte (ca. 810 µmol/m²)"]
["Wildtomaten (S. chilense ) Kurzkultur","Okt-März","WI","PAR","Vermehrung-Ernte","Aussaat","sehr gut","4-5",20,20,"60","60",25,92.16,23.04,null,23.04,400,16,"Anstaubewässerung","VE: STW (3:1) Verschnitt (pH: 7,7 / ≈ 7° dH (rechnerisch) / EC ≈ 0.25 ms)","Bewässerungsdüngung",null,"bei jeder Bewässerung","0.8 - 1.2","13 cm Ø / 0.9 L",null,"Anzuchtsubstrat: A200 Stender","Topfsubstrat: C700 Stender","45 sonnenliebende Pflanzen ab Blüte (ca. 810 µmol/m²)"]
["Wildtomaten (S. chilense ) Langkultur","Apr-Sep","SO","GWH-KAB","Vermehrung-Ernte","Aussaat","sehr gut","4-5",20,20,"60","60",25,95.018976000000009,{"$f":"(P86+Q86)","v":23.754743999999999},9.3547439999999984,14.4,200,20,"Tröpfchenbewässerung","VE: STW (3:1) Verschnitt (pH: 7,7 / ≈ 7° dH (rechnerisch) / EC ≈ 0.25 ms)","Bewässerungsdüngung",null,"bei jeder Bewässerung","0.8 - 1.2","13 cm Ø / 0.9 L","31 cm Ø / 12 L","Anzuchtsubstrat: A200 Stender","Topfsubstrat: C700 Stender","45 sonnenliebende Pflanzen ab Blüte (ca. 810 µmol/m²)"]
["Wildtomaten (S. chilense ) Langkultur","Okt-März","WI","GWH-KAB","Vermehrung-Ernte","Aussaat","problematisch","4-5",17,17,"60","60",25,69.66295822222223,17.415739555555557,3.0157395555555557,14.4,200,20,"Tröpfchenbewässerung","VE: STW (3:1) Verschnitt (pH: 7,7 / ≈ 7° dH (rechnerisch) / EC ≈ 0.25 ms)","Bewässerungsdüngung",null,"bei jeder Bewässerung","0.8 - 1.2","13 cm Ø / 0.9 L","31 cm Ø / 12 L","Anzuchtsubstrat: A200 Stender","Topfsubstrat: C700 Stender","45 sonnenliebende Pflanzen ab Blüte (ca. 810 µmol/m²)"]
["Wildtomaten (S. chilense ) Langkultur","Apr-Sep","SO","GWH","Vermehrung-Ernte","Aussaat","sehr gut","4-5",20,20,"60","60",25,79.883207999999996,19.970801999999999,16.370801999999998,3.6,50,20,"Tröpfchenbewässerung","VE: STW (3:1) Verschnitt (pH: 7,7 / ≈ 7° dH (rechnerisch) / EC ≈ 0.25 ms)","Bewässerungsdüngung",null,"bei jeder Bewässerung","0.8 - 1.2","13 cm Ø / 0.9 L","31 cm Ø / 12 L","Anzuchtsubstrat: A200 Stender","Topfsubstrat: C700 Stender","45 sonnenliebende Pflanzen ab Blüte (ca. 810 µmol/m²)"]
["Wildtomaten (S. chilense ) Langkultur","Okt-März","WI","GWH","Vermehrung-Ernte","Aussaat","problematisch","4-5",17,17,"60","60",25,35.510176888888893,8.8775442222222232,5.2775442222222226,3.6,50,20,"Tröpfchenbewässerung","VE: STW (3:1) Verschnitt (pH: 7,7 / ≈ 7° dH (rechnerisch) / EC ≈ 0.25 ms)","Bewässerungsdüngung",null,"bei jeder Bewässerung","0.8 - 1.2","13 cm Ø / 0.9 L","31 cm Ø / 12 L","Anzuchtsubstrat: A200 Stender","Topfsubstrat: C700 Stender","45 sonnenliebende Pflanzen ab Blüte (ca. 810 µmol/m²)"]
["Wildtomaten (S. chilense ) Langkultur","Apr-Sep","SO","PAR","Vermehrung-Ernte","Aussaat","gut","4-5",20,20,"60","60",25,92.16,23.04,null,23.04,400,16,"Tröpfchenbewässerung","VE: STW (3:1) Verschnitt (pH: 7,7 / ≈ 7° dH (rechnerisch) / EC ≈ 0.25 ms)","Bewässerungsdüngung",null,"bei jeder Bewässerung","0.8 - 1.2","13 cm Ø / 0.9 L","31 cm Ø / 12 L","Anzuchtsubstrat: A200 Stender","Topfsubstrat: C700 Stender","45 sonnenliebende Pflanzen ab Blüte (ca. 810 µmol/m²)"]
["Wildtomaten (S. chilense ) Langkultur","Okt-März","WI","PAR","Vermehrung-Ernte","Aussaat","gut","4-5",20,20,"60","60",25,92.16,23.04,null,23.04,400,16,"Tröpfchenbewässerung","VE: STW (3:1) Verschnitt (pH: 7,7 / ≈ 7° dH (rechnerisch) / EC ≈ 0.25 ms)","Bewässerungsdüngung",null,"bei jeder Bewässerung","0.8 - 1.2","13 cm Ø / 0.9 L","31 cm Ø / 12 L","Anzuchtsubstrat: A200 Stender","Topfsubstrat: C700 Stender","45 sonnenliebende Pflanzen ab Blüte (ca. 810 µmol/m²)"]
["Weizen-Sommer (Nasa)","Apr-Sep","SO","GWH-KAB"]
["Weizen-Sommer (Nasa)","Okt-März","WI","GWH-KAB"]
["Weizen-Sommer (Nasa)","Apr-Sep","SO","GWH"]
["Weizen-Sommer (Nasa)","Okt-März","WI","GWH"]
["Weizen-Sommer (Nasa)","Apr-Sep","SO","PAR","Vermehrung-Ernte","Aussaat","sehr gut","3",23,23,"60","60",35,{"$f":"(100*O96)/M96","v":98.742857142857147},34.56,null,{"$f":"R96*S96*0.0036","v":34.56},600,16,"Anstaubewässerung","VE: STW (3:1) Verschnitt (pH: 7,7 / ≈ 7° dH (rechnerisch) / EC ≈ 0.25 ms)","Bewässerungsdüngung",null,"bei jeder Bewässerung","0.8 - 1.2","13 cm Ø / 0.9 L",null,"Anzuchtsubstrat: A200 Stender","Topfsubstrat: C700 Stender",null,"immer 30 min Lichtrampe) => Keimung und Anpassung (23/23°C; 250 µmol/m²s (16h) - Bestockung (22/22°C; 500µmol/m²s(20h) - Schossen (22/22°C; 600 µmol/m²s (16h) - Ährenschieben (17/17°C; 600 µmol/m²s (16h) - dann 23/23°C - 250 µmol/m²s (16h)"]
["Weizen-Sommer (Nasa)","Okt-März","WI","PAR","Vermehrung-Ernte","Aussaat","sehr gut","3",23,23,"60","60",35,98.742857142857147,34.56,null,34.56,600,16,"Anstaubewässerung","VE: STW (3:1) Verschnitt (pH: 7,7 / ≈ 7° dH (rechnerisch) / EC ≈ 0.25 ms)","Bewässerungsdüngung",null,"bei jeder Bewässerung","0.8 - 1.2","13 cm Ø / 0.9 L",null,"Anzuchtsubstrat: A200 Stender","Topfsubstrat: C700 Stender",null,"immer 30 min Lichtrampe) => Keimung und Anpassung (23/23°C; 250 µmol/m²s (16h) - Bestockung (22/22°C; 500µmol/m²s(20h) - Schossen (22/22°C; 600 µmol/m²s (16h) - Ährenschieben (17/17°C; 600 µmol/m²s (16h) - dann 23/23°C - 250 µmol/m²s (16h)"]
["Weizen-Sommer (Triticum spp.) ","Apr-Sep","SO","GWH-KAB","Vermehrung-Abreife","Saatgutvermehrung","sehr gut","4-5",18,18,60,60,23,90.759756521739135,20.874744,9.3547439999999984,11.52,200,16,"Anstaubewässerung","VE: STW (3:1) Verschnitt (pH: 7,7 / ≈ 7° dH (rechnerisch) / EC ≈ 0.25 ms)","Bewässerungsdüngung",null,"bei jeder Bewässerung","Bestockung/Schossen: 1.2 - 1.8; Ährenschieben: 0.8-1.5","19 cm Ø / 3 L",null,"Topfsubstrat: C700 Stender",null,"30 lichtempfindliche Pflanzen (ca. 540 µmol/m²s)","Bestockung/Schossen: N-betont - S wichtig; Ährenschieben: K-betont"]
["Weizen-Sommer (Triticum spp.) ","Okt-März","WI","GWH-KAB","Vermehrung-Abreife","Saatgutvermehrung","problematisch","4-5",17,17,60,60,23,75.720606763285033,17.415739555555557,3.0157395555555557,14.4,200,20,"Anstaubewässerung","VE: STW (3:1) Verschnitt (pH: 7,7 / ≈ 7° dH (rechnerisch) / EC ≈ 0.25 ms)","Bewässerungsdüngung",null,"bei jeder Bewässerung","Bestockung/Schossen: 1.2 - 1.8; Ährenschieben: 0.8-1.5","19 cm Ø / 3 L",null,"Topfsubstrat: C700 Stender",null,"30 lichtempfindliche Pflanzen (ca. 540 µmol/m²s)","Bestockung/Schossen: N-betont - S wichtig; Ährenschieben: K-betont"]
["Weizen-Sommer (Triticum spp.) ","Apr-Sep","SO","GWH","Vermehrung-Abreife","Saatgutvermehrung","sehr gut","4-5",17,17,null,null,23,71.177399999999992,16.370801999999998,16.370801999999998,0,null,null,"Anstaubewässerung","VE: STW (3:1) Verschnitt (pH: 7,7 / ≈ 7° dH (rechnerisch) / EC ≈ 0.25 ms)","Bewässerungsdüngung",null,"bei jeder Bewässerung","Bestockung/Schossen: 1.2 - 1.8; Ährenschieben: 0.8-1.5","19 cm Ø / 3 L",null,"Topfsubstrat: C700 Stender",null,"70 sonnenliebende Pflanzen Wachstumsphaste  (ca. 1260 µmol/m²*s)","Bestockung/Schossen: N-betont - S wichtig; Ährenschieben: K-betont"]
["Weizen-Sommer (Triticum spp.) ","Okt-März","WI","GWH","Vermehrung-Abreife","Saatgutvermehrung","problematisch","4-5",17,17,null,null,23,38.598018357487923,8.8775442222222232,5.2775442222222226,3.6,50,20,"Anstaubewässerung","VE: STW (3:1) Verschnitt (pH: 7,7 / ≈ 7° dH (rechnerisch) / EC ≈ 0.25 ms)","Bewässerungsdüngung",null,"bei jeder Bewässerung","Bestockung/Schossen: 1.2 - 1.8; Ährenschieben: 0.8-1.5","19 cm Ø / 3 L",null,"Topfsubstrat: C700 Stender",null,null,"Bestockung/Schossen: N-betont - S wichtig; Ährenschieben: K-betont"]
["Weizen-Sommer (Triticum spp.) ","Apr-Sep","SO","PAR","Vermehrung-Abreife","Saatgutvermehrung","sehr gut","4-5",18,17,60,60,23,100.17391304347827,23.04,null,23.04,400,16,"Anstaubewässerung","VE: STW (3:1) Verschnitt (pH: 7,7 / ≈ 7° dH (rechnerisch) / EC ≈ 0.25 ms)","Bewässerungsdüngung",null,"bei jeder Bewässerung","Bestockung/Schossen: 1.2 - 1.8; Ährenschieben: 0.8-1.5","19 cm Ø / 3 L",null,"Topfsubstrat: C700 Stender",null,null,"Bestockung/Schossen: N-betont - S wichtig; Ährenschieben: K-betont"]
["Weizen-Sommer (Triticum spp.) ","Okt-März","WI","PAR","Vermehrung-Abreife","Saatgutvermehrung","sehr gut","4-5",18,17,60,60,23,100.17391304347827,23.04,null,23.04,400,16,"Anstaubewässerung","VE: STW (3:1) Verschnitt (pH: 7,7 / ≈ 7° dH (rechnerisch) / EC ≈ 0.25 ms)","Bewässerungsdüngung",null,"bei jeder Bewässerung","Bestockung/Schossen: 1.2 - 1.8; Ährenschieben: 0.8-1.5","19 cm Ø / 3 L",null,"Topfsubstrat: C700 Stender",null,null,"Bestockung/Schossen: N-betont - S wichtig; Ährenschieben: K-betont"]
["Weizen-Winter (Triticum spp.) ","Apr-Sep","SO","GWH-KAB","Vermehrung-Abreife","Saatgutvermehrung","sehr gut","6-8",18,18,60,60,23,90.759756521739135,20.874744,9.3547439999999984,11.52,200,16,"Anstaubewässerung","VE: STW (3:1) Verschnitt (pH: 7,7 / ≈ 7° dH (rechnerisch) / EC ≈ 0.25 ms)","Bewässerungsdüngung",null,"bei jeder Bewässerung","Bestockung/Schossen: 1.2 - 1.8; Ährenschieben: 0.8-1.5","19 cm Ø / 3 L",null,"Topfsubstrat: C700 Stender",null,"30 lichtempfindliche Pflanzen (ca. 540 µmol/m²s)","3-4 Wochen Vorkultur (18°C); 8-12 Wochen Vernalisation (8°C); Bestockung/Schossen: N-betont - S wichtig; Ährenschieben: K-betont"]
["Weizen-Winter (Triticum spp.) ","Okt-März","WI","GWH-KAB","Vermehrung-Abreife","Saatgutvermehrung","problematisch","6-8",17,17,60,60,23,75.720606763285033,17.415739555555557,3.0157395555555557,14.4,200,20,"Anstaubewässerung","VE: STW (3:1) Verschnitt (pH: 7,7 / ≈ 7° dH (rechnerisch) / EC ≈ 0.25 ms)","Bewässerungsdüngung",null,"bei jeder Bewässerung","Bestockung/Schossen: 1.2 - 1.8; Ährenschieben: 0.8-1.5","19 cm Ø / 3 L",null,"Topfsubstrat: C700 Stender",null,"30 lichtempfindliche Pflanzen (ca. 540 µmol/m²s)","3-4 Wochen Vorkultur (18°C); 8-12 Wochen Vernalisation (8°C); Bestockung/Schossen: N-betont - S wichtig; Ährenschieben: K-betont"]
["Weizen-Winter (Triticum spp.) ","Apr-Sep","SO","GWH","Vermehrung-Abreife","Saatgutvermehrung","sehr gut","6-8",17,17,null,null,23,71.177399999999992,16.370801999999998,16.370801999999998,0,null,null,"Anstaubewässerung","VE: STW (3:1) Verschnitt (pH: 7,7 / ≈ 7° dH (rechnerisch) / EC ≈ 0.25 ms)","Bewässerungsdüngung",null,"bei jeder Bewässerung","Bestockung/Schossen: 1.2 - 1.8; Ährenschieben: 0.8-1.5","19 cm Ø / 3 L",null,"Topfsubstrat: C700 Stender",null,"70 sonnenliebende Pflanzen Wachstumsphaste  (ca. 1260 µmol/m²*s)","3-4 Wochen Vorkultur (18°C); 8-12 Wochen Vernalisation (8°C); Bestockung/Schossen: N-betont - S wichtig; Ährenschieben: K-betont"]
["Weizen-Winter (Triticum spp.) ","Okt-März","WI","GWH","Vermehrung-Abreife","Saatgutvermehrung","problematisch","6-8",17,17,null,null,23,38.598018357487923,8.8775442222222232,5.2775442222222226,3.6,50,20,"Anstaubewässerung","VE: STW (3:1) Verschnitt (pH: 7,7 / ≈ 7° dH (rechnerisch) / EC ≈ 0.25 ms)","Bewässerungsdüngung",null,"bei jeder Bewässerung","Bestockung/Schossen: 1.2 - 1.8; Ährenschieben: 0.8-1.5","19 cm Ø / 3 L",null,"Topfsubstrat: C700 Stender",null,null,"3-4 Wochen Vorkultur (18°C); 8-12 Wochen Vernalisation (8°C); Bestockung/Schossen: N-betont - S wichtig; Ährenschieben: K-betont"]
["Weizen-Winter (Triticum spp.) ","Apr-Sep","SO","PAR","Vermehrung-Abreife","Saatgutvermehrung","sehr gut","6-8",18,17,60,60,23,100.17391304347827,23.04,null,23.04,400,16,"Anstaubewässerung","VE: STW (3:1) Verschnitt (pH: 7,7 / ≈ 7° dH (rechnerisch) / EC ≈ 0.25 ms)","Bewässerungsdüngung",null,"bei jeder Bewässerung","Bestockung/Schossen: 1.2 - 1.8; Ährenschieben: 0.8-1.5","19 cm Ø / 3 L",null,"Topfsubstrat: C700 Stender",null,null,"3-4 Wochen Vorkultur (18°C); 8-12 Wochen Vernalisation (8°C); Bestockung/Schossen: N-betont - S wichtig; Ährenschieben: K-betont"]
["Weizen-Winter (Triticum spp.) ","Okt-März","WI","PAR","Vermehrung-Abreife","Saatgutvermehrung","sehr gut","6-8",18,17,60,60,23,100.17391304347827,23.04,null,23.04,400,16,"Anstaubewässerung","VE: STW (3:1) Verschnitt (pH: 7,7 / ≈ 7° dH (rechnerisch) / EC ≈ 0.25 ms)","Bewässerungsdüngung",null,"bei jeder Bewässerung","Bestockung/Schossen: 1.2 - 1.8; Ährenschieben: 0.8-1.5","19 cm Ø / 3 L",null,"Topfsubstrat: C700 Stender",null,null,"3-4 Wochen Vorkultur (18°C); 8-12 Wochen Vernalisation (8°C); Bestockung/Schossen: N-betont - S wichtig; Ährenschieben: K-betont"]

{"sheet":"Excel","index":6,"n_rows":97,"n_cols":4,"rows_kept":97,"cut":false,"hidden":true,"merged":[]}
[]
[1,"nur bestimmte Bereiche im AB zur bearbeitung freigeben","Zellen markieren"]
[null,null,"START / Zellen / Format"]
[null,null,"Zelle sperren","=> entsperrt Zellen, wenn später das Abrebitsblatt gesperrt wird"]
[null,null,"START / Zellen / Format"]
[null,null,"Blatt schützen","=>Passwort eingeben / OK"]
[null,null,"evt. Bei überprüfen => \"Nicht gesperrte Zellen auswählen\" deaktivieren"]
[null,"aufheben","START / Zellen / Format"]
[null,null,"Blattschutz aufheben (Passwort)"]
[]
[2,"Nutzer kann keine Strukturänderungen vornehmen","ÜBERPRÜFEN/Änderungen"]
[null,null,"Arbeitsmappe schützen","=> \"Struktur\" muss aktiviert sein"]
[null,null,null,"=>Passwort eingeben / OK"]
[null,"aufheben","ÜBERPRÜFEN/Änderungen"]
[null,null,"Arbeitsmappe schützen","=>Passwort eingeben / OK"]
[]
[]
[]
[null,"gi95gis_Mil98Den92"]
[null,"ghl-anmeldung"]
[null,"ghl "]
[]
[]
[]
[null,"Editor via Extras/Eigenschaften/Schutz","VBA-Sperren","ghl-steger"]
[null,null,"Einträge sperren","ghl-steger"]
[null,null,"Datei sperren","ghl-steger"]
[]
[null,"https://www.youtube.com/watch?v=RIucnioX9qs","Kopf/Fusszeile Logo"]
[]
[]
[]
[]
[]
[null,"Dropdown"]
[null,"https://www.youtube.com/watch?v=6lnsHNhZkro","Position für Dropdown"]
[null,null,"Daten"]
[null,null,"Datenüberprüfung"]
[null,null,"Liste"]
[null,null,"Quelle (ohne Überschrift)"]
[null,null,"OK"]
[null,"Dropdown aus Tabelle"]
[null,"https://www.youtube.com/watch?v=EByWLNGkCmw"]
[null,null,"intellegent Liste erstellen"]
[null,"Tabelle erstellen","Zelle innerhalb der Daten","https://www.youtube.com/watch?v=hh3YYOZNTcw"]
[null,null,"Start / \"Als Tabelle formatieren"]
[null,null,"Formatvorlage Tabelle"]
[null,null,"Zellbereich festlegen (Tabelle hat Überschriften)"]
[null,null,"Liste benennen"]
[null,null,"komplette Liste (mit Überschriften) markieren"]
[null,null,"Formeln"]
[null,null,"Definierte Namen"]
[null,null,"Aus Auswahl erstellen"]
[null,null,"=> oberste Zeile"]
[null,null,"Liste überprüfen"]
[null,null,"Formeln"]
[null,null,"Namens-Manager"]
[null,null,"OHNE ÜBERSCHRIFT"]
[null,null,"Position für Dropdown"]
[null,null,"Daten"]
[null,null,"Datenüberprüfung"]
[null,null,"Liste"]
[null,null,"Quelle (ohne Überschrift) => 'Listennamen'"]
[null,null,"OK"]
[]
[]
[]
[]
[null,"Dropdown Ja/Nein farbig","Ja /Nein farbig","https://www.youtube.com/watch?v=5xcuRJqidPU"]
[null,null,"in Liste"]
[null,null,"Kutoolen"]
[null,null,"Dropdown-Liste"]
[null,null,"Farbige Dropdown-Liste"]
[]
[]
[]
[null,null,"Ja /Nein farbig"]
[null,null,"Zelle in Dropdown"]
[null,null,"Wert aussuchen z.B. Ja"]
[null,null,"Start"]
[null,null,"Bedingte Formatierung"]
[null,null,"Regeln zum Hervorheben (oberste)"]
[null,null,"Gleich "]
[null,null,"Fenster => Farbe definieren","benutzerdefiniert => andere Farbe oder Leer"]
[]
[null,null,"nächster Wert…"]
[]
[null,null,"Bedingte Formatierung"]
[null,null,"Regeln verwalten"]
[]
[]
[]
[null,"Verknüpfungen löschen","Daten"]
[null,null,"Verbindungen"]
[null,null,"Verknüpfungen bearbeiten"]
[]
[null,"Geisterverbindungen","Datei unter Excel97 speichern / Excel schließen / Datei öffnen / unter Excel-aktuell speichern"]